Workbook

Sheet 원가
A1: 공 사 원 가 계 산 서
A2: 공사명 : | C2: [ 대한한의사협회 가양동회관 옥상 방수공사 ]
A3: 비 목 | D3: 금 액 | E3: 구 성 비 | I3: 비 고
A4: 순 공 사 비 | B4: 재료비 | C4: 직접재료비
C5: 간접재료비
C6: [ 소 계 ] | D6: =SUM(D4:D5) -> 0
B7: 노무비 | C7: 직접노무비
C8: 간접노무비 | E8: 직접노무비* | F8: 12.6%
C9: [ 소 계 ] | D9: =SUM(D7:D8) -> 0
B10: 경 비 | C10: 폐기물처리비
C11: 기계경비
C12: 산재보험료 | E12: 노무비* | F12: 3.56%
C13: 고용보험료 | E13: 노무비* | F13: 1.01%
C14: 건강보험료 | E14: 직접노무비* | F14: 3.545% | I14: 30일 미만 공사 미적용
C15: 노인장기요양보험료 | E15: 건강보험료* | F15: 12.95% | I15: 30일 미만 공사 미적용
C16: 연금보험료 | E16: 직접노무비* | F16: 4.5% | I16: 30일 미만 공사 미적용
C17: 퇴직공제부금비 | E17: 직접노무비* | F17: 2.3% | I17: 1억원 이상 공사 적용
C18: 산업안전보건관리비 | E18: (재료비+직접노무비)* | F18: 2.93% | H18: 0
C19: 환경보전비 | E19: (재료비+직접노무비+기계경비)* | F19: 0.3%
C20: 공구손료 | E20: 직접노무비* | F20: 3.00%
C21: 기타경비 | E21: (재료비+노무비)* | F21: 5.20%
C22: [ 소 계 ] | D22: =SUM(D10:D21) -> 0
A23: 순공사비 계
C24: 일반관리비 | E24: 순공사비 계* | F24: 6.0%
C25: 이윤 | E25: (노무비+경비+일반관리비)* | F25: 15.00%
A26: 공급가액 | D26: =ROUNDDOWN(SUM(D23:D25),-4) -> 0
C27: 부가가치세 | E27: 공급가액* | F27: 10%
A28: 총 공 사 비
C29: 직접공사비 | D29: =D4+D7+D10+#REF! -> 
C30: 제경비율 | D30: =(D26-D29)/D29 -> 

Sheet 공종별집계표
A1: 공 종 별 집 계 표
A2: [ 대한한의사협회 가양동회관 옥상 방수공사 ]
A3: 품 명 | B3: 규 격 | C3: 단위 | D3: 수량 | E3: 재 료 비 | G3: 노 무 비 | I3: 경 비 | K3: 합 계 | M3: 비 고 | N3: 공종코드 | O3: 변수 | P3: 상위공종 | Q3: 공종구분 | R3: 공종레벨 | S3: 공종소계 | T3: 원가계산서 연결금액
E4: 단 가 | F4: 금 액 | G4: 단 가 | H4: 금 액 | I4: 단 가 | J4: 금 액 | K4: 단 가 | L4: 금 액
A5: 01 대한한의사협회 가양동회관 옥상 방수공사 | D5: 1 | N5: 01 | R5: 1
A6: 0101 건 축 공 사 | D6: 1 | N6: 0101 | P6: 01 | R6: 2
A7: 010101 가 설 공 사 | D7: 1 | E7: =공종별내역서!F7 -> 0 | F7: =E7*D7 -> 0 | G7: =공종별내역서!H7 -> 0 | H7: =G7*D7 -> 0 | I7: =공종별내역서!J7 -> 0 | J7: =I7*D7 -> 0 | K7: =E7+G7+I7 -> 0 | L7: =F7+H7+J7 -> 0 | N7: 010101 | P7: 0101 | R7: 3
A8: 010102 철 거 공 사 | D8: 1 | E8: =공종별내역서!F11 -> 0 | F8: 0 | G8: =공종별내역서!H11 -> 0 | H8: 0 | I8: =공종별내역서!J11 -> 0 | J8: 0 | K8: 0 | L8: 0 | N8: 010102 | P8: 0101 | R8: 3
A9: 010103 방 수 공 사 | D9: 1 | E9: =공종별내역서!F15 -> 0 | F9: 0 | G9: =공종별내역서!H15 -> 0 | H9: 0 | I9: =공종별내역서!J15 -> 0 | J9: 0 | K9: 0 | L9: 0 | N9: 010103 | P9: 0101 | R9: 3
A10: 010104 기 타 공 사 | D10: 1
A22: [ 합 계 ] | F22: =F5 -> 0 | H22: =H5 -> 0 | J22: =J5 -> 0 | L22: =L5 -> 0

Sheet 공종별내역서
A1: [ 대한한의사협회 가양동회관 옥상 방수공사 ]
A2: 품 명 | B2: 규 격 | C2: 단위 | D2: 수량 | E2: 재 료 비 | G2: 노 무 비 | I2: 경 비 | K2: 합 계 | M2: 비 고 | N2: 품목코드 | O2: 변수 | P2: 설정 | Q2: 공종코드 | R2: 일위 | S2: 단산 | T2: 자재 | U2: 손료적용 | V2: 손료저장 | W2: 적용율 | X2: JUK1 | Y2: JUK2 | Z2: JUK3 | AA2: JUK4 | AB2: JUK5 | AC2: JUK6 | AD2: JUK7 | AE2: JUK8 | AF2: JUK9 | AG2: JUK10 | AH2: JUK11 | AI2: JUK12 | AJ2: JUK13 | AK2: JUK14 | AL2: JUK15 | AM2: JUK16 | AN2: JUK17 | AO2: JUK18 | AP2: JUK19 | AQ2: JUK20 | AR2: 자재구분 | AS2: 공종구분 | AT2: 공종레벨 | AU2: 공종+자재
E3: 단 가 | F3: 금 액 | G3: 단 가 | H3: 금 액 | I3: 단 가 | J3: 금 액 | K3: 단 가 | L3: 금 액
A4: 010101 가 설 공 사 | Q4: 010101
A5: 항목 | E5: =TRUNC(일위대가목록!E4,0) -> 0 | F5: =TRUNC(E5*D5,0) -> 0 | H5: =TRUNC(G5*D5,0) -> 0 | J5: =TRUNC(I5*D5,0) -> 0 | K5: =TRUNC(E5+G5+I5,0) -> 0 | L5: 0 | N5: 5B3AC60571119608B04E0776901760 | Q5: 010101 | R5: T | S5: F | T5: F | AU5: 0101015B3AC60571119608B04E0776901760
A6: 항목 | E6: =TRUNC(일위대가목록!E6,0) -> 0 | F6: =TRUNC(E6*D6,0) -> 0 | H6: =TRUNC(G6*D6,0) -> 0 | J6: =TRUNC(I6*D6,0) -> 0 | K6: 0 | L6: 0 | N6: 5B3AC600F71191453FAA47A8D9CF68 | Q6: 010101 | R6: T | S6: F | T6: F | AU6: 0101015B3AC600F71191453FAA47A8D9CF68
A7: [ 합 계 ] | F7: =SUMIF(Q5:Q6,"010101",F5:F6) -> 0 | H7: =SUMIF(Q5:Q6,"010101",H5:H6) -> 0 | J7: =SUMIF(Q5:Q6,"010101",J5:J6) -> 0 | L7: =SUMIF(Q5:Q6,"010101",L5:L6) -> 0 | N7: TOTAL
A8: 010102 철 거 공 사 | Q8: 010102
A9: 항목 | F9: =TRUNC(E9*D9,0) -> 0 | H9: =TRUNC(G9*D9,0) -> 0 | I9: =TRUNC(단가대비표!V19,0) -> 0 | J9: =TRUNC(I9*D9,0) -> 0 | K9: =TRUNC(E9+G9+I9,0) -> 0 | L9: =TRUNC(F9+H9+J9,0) -> 0 | N9: 5C1BB65D07419C8228D8C777CEE263724BBB43 | Q9: 010102 | R9: F | S9: F | T9: T | AU9: 0101025C1BB65D07419C8228D8C777CEE263724BBB43
A10: 항목 | F10: =TRUNC(E10*D10,0) -> 0 | H10: =TRUNC(G10*D10,0) -> 0 | J10: =TRUNC(I10*D10,0) -> 0 | K10: =TRUNC(E10+G10+I10,0) -> 0 | L10: =TRUNC(F10+H10+J10,0) -> 0 | N10: 5B3AE650516192054E84E76D34DE67 | Q10: 010102 | R10: T | S10: F | T10: F | AU10: 0101025B3AE650516192054E84E76D34DE67
A11: [ 합 계 ] | F11: =SUMIF(Q9:Q10,"010102",F9:F10) -> 0 | H11: =SUMIF(Q9:Q10,"010102",H9:H10) -> 0 | J11: =SUMIF(Q9:Q10,"010102",J9:J10) -> 0 | L11: =SUMIF(Q9:Q10,"010102",L9:L10) -> 0 | N11: TOTAL
A12: 010103 방 수 공 사 | Q12: 010103
A13: 항목 | F13: =TRUNC(E13*D13,0) -> 0 | H13: =TRUNC(G13*D13,0) -> 0 | I13: =TRUNC(일위대가목록!G8,0) -> 0 | J13: =TRUNC(I13*D13,0) -> 0 | K13: =TRUNC(E13+G13+I13,0) -> 0 | L13: 0
A14: 항목 | F14: 0 | H14: 0 | I14: =TRUNC(일위대가목록!G13,0) -> 0 | J14: 0 | K14: 0 | L14: 0
A15: [ 합 계 ] | F15: =SUM(F13:F14) -> 0 | H15: =SUM(H13:H14) -> 0 | J15: =SUM(J13:J14) -> 0 | L15: =SUM(L13:L14) -> 0 | N15: TOTAL
A16: 010104 기 타 공 사 | Q16: 010106
A17: 항목 | F17: =TRUNC(E17*D17,0) -> 0 | H17: =TRUNC(G17*D17,0) -> 0 | J17: =TRUNC(I17*D17,0) -> 0 | K17: =TRUNC(E17+G17+I17,0) -> 0 | L17: 0 | N17: 5B3B96BED5319F0C8FC0A77F335260 | Q17: 010106 | R17: T | S17: F | T17: F | AU17: 0101065B3B96BED5319F0C8FC0A77F335260
A18: 항목 | F18: =TRUNC(E18*D18,0) -> 0 | H18: =TRUNC(G18*D18,0) -> 0 | J18: =TRUNC(I18*D18,0) -> 0 | K18: 0 | L18: 0 | N18: 5A843614E32198E17A57A70F412A675DAA0372 | Q18: 010106 | R18: F | S18: F | T18: T | AU18: 0101065A843614E32198E17A57A70F412A675DAA0372
A19: [ 합 계 ] | N19: TOTAL

Sheet 일위대가목록 (hidden)
B1: 일 위 대 가 목 록
B2: [ 전쟁기념관 단지내 노후건축물 방수공사 ]
A3: 코 드 | B3: 품 명 | C3: 규 격 | D3: 단위 | E3: 재 료 비 | F3: 노 무 비 | G3: 경 비 | H3: 합 계 | I3: 번 호 | J3: 비 고 | K3: 노임계수 | L3: 할증 | M3: 품셈개요 | N3: 장비일위
A4: 5B3AC60571119608B04E0776901760 | B4: 양중.하양장비 | C4: 20톤, 이동식크레인 | D4: 일 | E4: =일위대가!F7 -> 0.0 | F4: =일위대가!H7 -> 0.0 | G4: =일위대가!J7 -> 923,648.0 | H4: =E4+F4+G4 -> 923,648.0 | I4: 호표 1 | M4: 공통 8-3
A5: 5B3AC6057111960FFF34D7C771F667 | B5: 양중.하양장비 | C5: 5톤, 사다리차[스카이] | D5: 일 | E5: =일위대가!F12 -> 0.0 | F5: =일위대가!H12 -> 0.0 | G5: =일위대가!J12 -> 702,472.0 | H5: 702,472.0 | I5: 호표 2 | M5: 공통 8-3
A6: 5B3AC600F71191453FAA47A8D9CF68 | B6: 건축물 현장정리 | C6: 지붕방수 | D6: M2 | E6: =일위대가!F16 -> 0.0 | F6: =일위대가!H16 -> 1,076.0 | G6: =일위대가!J16 -> 0.0 | H6: 1,076.0 | I6: 호표 3 | M6: 공통 2-11-2 준용
A7: 5B3AE650516192054E84E76D34DE67 | B7: 레미콘타설[무근/펌프카] | C7: 슬럼프8~12cm | D7: M3 | E7: =일위대가!F24 -> 1,826.0 | F7: =일위대가!H24 -> 10,373.0 | G7: =일위대가!J24 -> 4,381.0 | H7: 16,580.0 | I7: 호표 4 | M7: 공통 6-1-4[2014]
A8: 5B3A56B49F419521317EF79255C765 | B8: 쇠흙손 | C8: 방수면 | D8: M2 | E8: =일위대가!F28 -> 0.0 | F8: =일위대가!H28 -> 907.0 | G8: =일위대가!J28 -> 0.0 | H8: 907.0 | I8: 호표 5 | M8: 공통 6-1-3
A9: 5B3A56B49AC193E608771763A1486A | B9: 적층형복합방수 | C9: 바닥, 노출형 | D9: M2 | E9: =일위대가!F38 -> 31,832.0 | F9: =일위대가!H38 -> 18,905.0 | G9: =일위대가!J38 -> 0.0 | H9: 50,737.0 | I9: 호표 6 | M9: 전문견적
A10: 5B3A56B49AC193E608771763A1756E | B10: 적층형복합방수 | C10: 벽, 노출형 | D10: M2 | E10: =일위대가!F47 -> 12,897.0 | F10: =일위대가!H47 -> 23,514.0 | G10: =일위대가!J47 -> 0.0 | H10: 36,411.0 | I10: 호표 7 | M10: 전문견적
A11: 5B3A56B75AB19B3A6CCC572BC1B467 | B11: 자연트렌치조성 | C11: W300 | D11: M | E11: =일위대가!F52 -> 0.0 | F11: =일위대가!H52 -> 4,738.0 | G11: =일위대가!J52 -> 0.0 | H11: 4,738.0 | I11: 호표 8
A12: 5B3A161E40F19B6C6A0367ECED9B6E | B12: 루프드레인설치 | C12: 주철, Ø100mm, L형 | D12: EA | E12: =일위대가!F58 -> 66,221.0 | F12: =일위대가!H58 -> 45,633.0 | G12: =일위대가!J58 -> 0.0 | H12: 111,854.0 | I12: 호표 9 | M12: 건축 7-3-1
A13: 5B3A06382F019553F2B6A7916C606C | B13: 수밀코킹 | C13: □10*10mm | D13: M | E13: =일위대가!F63 -> 1,200.0 | F13: =일위대가!H63 -> 5,015.0 | G13: =일위대가!J63 -> 0.0 | H13: 6,215.0 | I13: 호표 10 | M13: 건축 6-6-1
A14: 5B3A669FB6719086E1A48700B58765 | B14: 와이어메쉬깔기 | C14: #8-150*150 | D14: M2 | E14: =일위대가!F69 -> 1,957.0 | F14: =일위대가!H69 -> 1,285.0 | G14: =일위대가!J69 -> 0.0 | H14: 3,242.0 | I14: 호표 11 | M14: 건축 8-1-3
A15: 5B3A669D81C19536E9D7374439F466 | B15: AL 후레싱 | C15: 35*150*455*55*3.0mm(30*30틀)+코킹, PVDF2 | D15: M | E15: =일위대가!F76 -> 48,214.0 | F15: =일위대가!H76 -> 70,982.0 | G15: =일위대가!J76 -> 3,099.0 | H15: 122,295.0 | I15: 호표 12 | M15: 건축 8-3-1
A16: 5B3BC6F1168193A0BA6BC79F274065 | B16: 친환경수성페인트 | C16: 외벽, 2회. 롤러(기존도장면) | D16: M2 | E16: =일위대가!F82 -> 1,141.0 | F16: =일위대가!H82 -> 8,099.0 | G16: =일위대가!J82 -> 132.0 | H16: 9,372.0 | I16: 호표 13 | M16: 건축 11-2-2
A17: 5B3B96BED5319F0C8FC0A77F335260 | B17: 배수파이프설치 | C17: PVC, Ø100, VG2 | D17: M | E17: =일위대가!F88 -> 6,272.0 | F17: =일위대가!H88 -> 45,984.0 | G17: =일위대가!J88 -> 919.0 | H17: 53,175.0 | I17: 호표 14 | M17: 기계 1-5-1
A18: 5B3B96B84DD19AB7F55DE7D9336B67 | B18: 경량콘크리트철거(+와어어메쉬) | C18: 장비(브레이커) | D18: M3 | E18: =일위대가!F95 -> 1,224.0 | F18: =일위대가!H95 -> 122,453.0 | G18: =일위대가!J95 -> 310.0 | H18: 123,987.0 | I18: 호표 15
A19: 5B3B96B84DD19ABC7796A77AAC756E | B19: 시멘트벽돌철거 | C19: 소형장비(브레이커) | D19: M3 | E19: =일위대가!F101 -> 546.0 | F19: =일위대가!H101 -> 54,629.0 | G19: =일위대가!J101 -> 1,168.0 | H19: 56,343.0 | I19: 호표 16
A20: 5B3B96B84DD19ABD1E0347D26BEC64 | B20: 도막방수철거 | C20: 바닥 | D20: M2 | E20: =일위대가!F107 -> 0.0 | F20: =일위대가!H107 -> 1,984.0 | G20: =일위대가!J107 -> 119.0 | H20: 2,103.0 | I20: 호표 17 | M20: 유지 3-2-11(2023)
A21: 5B3B96B84DD19ABD1E0347ECDE9A6D | B21: 시트방수철거 | C21: 바닥 | D21: M2 | E21: =일위대가!F113 -> 0.0 | F21: =일위대가!H113 -> 1,984.0 | G21: =일위대가!J113 -> 119.0 | H21: 2,103.0 | I21: 호표 18 | M21: 유지 3-2-11(2023)
A22: 5B3B96B84DD19ABD1E02A77432226A | B22: 시트방수철거+바탕처리[재방수] | C22: 벽 | D22: M2 | E22: =일위대가!F119 -> 0.0 | F22: =일위대가!H119 -> 11,529.0 | G22: =일위대가!J119 -> 691.0 | H22: 12,220.0 | I22: 호표 19
A23: 5B3B96B84DD19ABD1F28A780DBC365 | B23: 코킹철거 | D23: M | E23: =일위대가!F124 -> 0.0 | F23: =일위대가!H124 -> 1,805.0 | G23: =일위대가!J124 -> 0.0 | H23: 1,805.0 | I23: 호표 20 | M23: 건축 6-6-1 준용
A24: 5B3B96B84DD19B5BABE667D0533F66 | B24: 모르타르철거 | C24: 바닥, 소형장비 | D24: M2 | E24: =일위대가!F129 -> 0.0 | F24: =일위대가!H129 -> 2,979.0 | G24: =일위대가!J129 -> 31.0 | H24: 3,010.0 | I24: 호표 21
A25: 5B3B96B84DD19B5F061DD75A39956B | B25: 드레인 철거 | C25: Ø100 | D25: EA | E25: =일위대가!F134 -> 0.0 | F25: =일위대가!H134 -> 9,126.0 | G25: =일위대가!J134 -> 0.0 | H25: 9,126.0 | I25: 호표 22 | M25: 건축 7-3-1(20%)
A26: 5B3B96ABF5419740AB80E7996A466A | B26: 폐기물하양비 | D26: 톤 | E26: =일위대가!F138 -> 0.0 | F26: =일위대가!H138 -> 18,127.0 | G26: =일위대가!J138 -> 0.0 | H26: 18,127.0 | I26: 호표 23
A27: 5C24262EDF019EDE984EC7A8CF696D3A9B7B6372 | B27: 크레인(타이어) | C27: 20ton | D27: HR | E27: =일위대가!F145 -> 9,547.0 | F27: =일위대가!H145 -> 55,700.0 | G27: =일위대가!J145 -> 50,209.0 | H27: 115,456.0 | I27: 호표 24 | K27: A | M27: 공통 8-3,4(2104) | N27: T
A28: 5C24262EDF019EDE9842179246956EACF02C766B | B28: 이동식 양중 및 작업장비 | C28: 5ton, 스카이 | D28: HR | E28: =일위대가!F152 -> 7,784.0 | F28: =일위대가!H152 -> 47,231.0 | G28: =일위대가!J152 -> 32,794.0 | H28: 87,809.0 | I28: 호표 25 | K28: A | M28: 토목 9-5.9 | N28: T
A29: 5C24262EDF0198B3669747405D9A6472ED3A8D7A | B29: 콘크리트 펌프차 | C29: 32m(80∼95㎥/hr) | D29: HR | E29: =일위대가!F159 -> 29,707.0 | F29: =일위대가!H159 -> 55,700.0 | G29: =일위대가!J159 -> 65,589.0 | H29: 150,996.0 | I29: 호표 26 | K29: A | M29: 공통 8-3,4(4504) | N29: T
A30: 5B3A161E40F19B6C6A01A726842767 | B30: 드레인설치_노무비 | D30: EA | E30: =일위대가!F164 -> 0.0 | F30: =일위대가!H164 -> 45,633.0 | G30: =일위대가!J164 -> 0.0 | H30: 45,633.0 | I30: 호표 27 | M30: 건축 7-3-1
A31: 5B3A06382F0195503D256744A2246E | B31: 수밀코킹_노무비 | D31: M | E31: =일위대가!F168 -> 0.0 | F31: =일위대가!H168 -> 5,015.0 | G31: =일위대가!J168 -> 0.0 | H31: 5,015.0 | I31: 호표 28 | M31: 건축 6-6-1
A32: 5B3A669FB6719086E1ACD743466A66 | B32: 와이어메쉬깔기_노무비 | D32: M2 | E32: =일위대가!F172 -> 0.0 | F32: =일위대가!H172 -> 1,285.0 | G32: =일위대가!J172 -> 0.0 | H32: 1,285.0 | I32: 호표 29 | M32: 건축 8-1-3(2016보완)
A33: 5B3A66992AB1928F1139B7602BFE64 | B33: 스틸파이프설치 | C33: 30*30*1.6mm | D33: M | E33: =일위대가!F179 -> 1,956.0 | F33: =일위대가!H179 -> 7,189.0 | G33: =일위대가!J179 -> 366.0 | H33: 9,511.0 | I33: 호표 30 | M33: 건축 8-3-1
A34: 5B3A6698070191A7DC4C17DC741360 | B34: 알루미늄판설치 | C34: 3.0mm, 불소P | D34: M2 | E34: =일위대가!F184 -> 56,076.0 | F34: =일위대가!H184 -> 45,177.0 | G34: =일위대가!J184 -> 2,295.0 | H34: 103,548.0 | I34: 호표 31 | M34: 건축 8-3-1
A35: 5B3A06382F019553F2B58705FA8065 | B35: 수밀코킹 | C35: △10*10mm | D35: M | E35: =일위대가!F189 -> 600.0 | F35: =일위대가!H189 -> 5,015.0 | G35: =일위대가!J189 -> 0.0 | H35: 5,615.0 | I35: 호표 32 | M35: 건축 6-6-1
A36: 5B3A768FE8119D55CE77170DCFBB61 | B36: 잡철물현장제작설치 | D36: KG | E36: =일위대가!F198 -> 153.0 | F36: =일위대가!H198 -> 5,132.0 | G36: =일위대가!J198 -> 256.0 | H36: 5,541.0 | I36: 호표 33 | M36: 건축 8-3-1(2022)
A37: 5B3BC6F23AD198BC8947C76C23B86C | B37: 녹막이페인트 | C37: 철재면, 1회, 뿜칠 | D37: M2 | E37: =일위대가!F206 -> 554.0 | F37: =일위대가!H206 -> 892.0 | G37: =일위대가!J206 -> 107.0 | H37: 1,553.0 | I37: 호표 34 | M37: 건축 11-2-6 준용
A38: 5B3A6698070191A7DC4C17DC741366 | B38: 알루미늄판설치 | C38: 3.0mm | D38: M2 | E38: =일위대가!F212 -> 47,093.0 | F38: =일위대가!H212 -> 41,723.0 | G38: =일위대가!J212 -> 2,081.0 | H38: 90,897.0 | I38: 호표 35 | M38: 건축 8-3-1
A39: 5B3BC6F3C04193228449D7C8D16161 | B39: 불소수지페인트 | C39: 철재면, 2회, 뿜칠 | D39: M2 | E39: =일위대가!F218 -> 8,983.0 | F39: =일위대가!H218 -> 3,454.0 | G39: =일위대가!J218 -> 214.0 | H39: 12,651.0 | I39: 호표 36 | M39: 건축 11-2-3준용
A40: 5B3BC6F114D195C4718C07205CDE61 | B40: 바탕만들기 | C40: 철재면 | D40: M2 | E40: =일위대가!F224 -> 50.0 | F40: =일위대가!H224 -> 1,670.0 | G40: =일위대가!J224 -> 0.0 | H40: 1,720.0 | I40: 호표 37 | M40: 건축 11-1-3
A41: 5B3BC6F3C041932283A2574F0F2363 | B41: 불소수지페인트_재료비 | C41: 철재면, 2회 | D41: M2 | E41: =일위대가!F229 -> 8,933.0 | F41: =일위대가!H229 -> 0.0 | G41: =일위대가!J229 -> 0.0 | H41: 8,933.0 | I41: 호표 38 | M41: 건축 11-2-4(2020)
A42: 5B3BC6F23931921AA0A687B706C067 | B42: 유성페인트_노무비 | C42: 1회, 뿜칠 | D42: M2 | E42: =일위대가!F235 -> 0.0 | F42: =일위대가!H235 -> 892.0 | G42: =일위대가!J235 -> 107.0 | H42: 999.0 | I42: 호표 39 | M42: 건축 11-2-3 준용
A43: 5B3BC6F114D195C4718B77D6040163 | B43: 바탕만들기[기존도장면] | C43: 벽 | D43: M2 | E43: =일위대가!F241 -> 42.0 | F43: =일위대가!H241 -> 1,419.0 | G43: =일위대가!J241 -> 0.0 | H43: 1,461.0 | I43: 호표 40 | M43: 건축 11-1-5 준용
A44: 5B3BC6F1168193A14017A750C07569 | B44: 수성페인트[친환경]_재료비 | C44: 2회, 붓, 롤러칠 | D44: M2 | E44: =일위대가!F245 -> 1,099.0 | F44: =일위대가!H245 -> 0.0 | G44: =일위대가!J245 -> 0.0 | H44: 1,099.0 | I44: 호표 41 | M44: 건축 11-2-1
A45: 5B3BC6F115F19CEF99EC8782876B6D | B45: 수성페인트_노무비 | C45: 벽(바닥), 1회, 롤러칠 | D45: M2 | E45: =일위대가!F251 -> 0.0 | F45: =일위대가!H251 -> 3,340.0 | G45: =일위대가!J251 -> 66.0 | H45: 3,406.0 | I45: 호표 42 | M45: 건축 11-2-2
A46: 5B3B96BED5319F0D963137615C666F | B46: PVC관 배관비 | C46: Ø100이하 | D46: M | E46: =일위대가!F257 -> 0.0 | F46: =일위대가!H257 -> 45,984.0 | G46: =일위대가!J257 -> 919.0 | H46: 46,903.0 | I46: 호표 43 | M46: 기계 1-5-1
A47: 5C24262EDF01995F503117D5F8C36AD331FC225B | B47: 소형브레이커(전기식). | C47: 1.5kw | D47: HR | E47: =일위대가!F261 -> 0.0 | F47: =일위대가!H261 -> 0.0 | G47: =일위대가!J261 -> 310.0 | H47: 310.0 | I47: 호표 44 | M47: 토목 9-2(5220) | N47: T
B48: 경질우레탄보온판(슬래브위깔기,바닥) | C48: T=60 | D48: M2 | E48: =일위대가!F266 -> 16,461.0 | F48: =일위대가!H266 -> 1,847.1 | G48: =일위대가!J266 -> 0.0 | H48: =E48+F48+G48 -> 18,308.1 | I48: 호표 45 | M48: 건축 5-3-1
B49: 발포폴리스티렌 설치(슬래브 위 깔기, 바닥) | C49: 50mm 초과 ~ 100mm 이하 | D49: M2 | E49: =일위대가!F271 -> 0.0 | F49: =일위대가!H271 -> 2,638.8 | G49: =일위대가!J271 -> 0.0 | H49: =E49+F49+G49 -> 2,638.8 | I49: 호표 46 | M49: 건축 5-3-1

Sheet 일위대가 (hidden)
A1: [ 전쟁기념관 단지내 노후건축물 방수공사 ]
A2: 품 명 | B2: 규 격 | C2: 단위 | D2: 수량 | E2: 재 료 비 | G2: 노 무 비 | I2: 경 비 | K2: 합 계 | M2: 비 고 | N2: 일위대가 | O2: 품목코드 | P2: 일위 | Q2: 단산 | R2: 자재 | S2: 손료적용 | T2: 손료저장 | U2: 적용율 | V2: JUK1 | W2: JUK2 | X2: JUK3 | Y2: JUK4 | Z2: JUK5 | AA2: JUK6 | AB2: JUK7 | AC2: JUK8 | AD2: JUK9 | AE2: JUK10 | AF2: JUK11 | AG2: JUK12 | AH2: JUK13 | AI2: JUK14 | AJ2: JUK15 | AK2: JUK16 | AL2: JUK17 | AM2: JUK18 | AN2: JUK19 | AO2: JUK20 | AP2: 할증적용 | AQ2: 할증저장 | AR2: 할증율 | AS2: HAL1 | AT2: HAL2 | AU2: HAL3 | AV2: 자재구분 | AW2: 일위대가+자재 | AX2: 장비일위 | AY2: 설정 | AZ2: 할증체크
E3: 단 가 | F3: 금 액 | G3: 단 가 | H3: 금 액 | I3: 단 가 | J3: 금 액 | K3: 단 가 | L3: 금 액
A4: 양중.하양장비 20톤, 이동식크레인 일 공통 8-3 ( 호표 1 ) | N4: 5B3AC60571119608B04E0776901760
A5: 크레인(타이어) | B5: 20ton | C5: HR | D5: 8 | E5: =일위대가목록!E27 -> 9,547.00 | F5: =TRUNC(E5*D5,1) -> 76,376.0 | G5: =일위대가목록!F27 -> 55,700.00 | H5: =TRUNC(G5*D5,1) -> 445,600.0 | I5: =일위대가목록!G27 -> 50,209.00 | J5: =TRUNC(I5*D5,1) -> 401,672.0 | K5: =TRUNC(E5+G5+I5,1) -> 115,456.00 | L5: =TRUNC(F5+H5+J5,1) -> 923,648.0 | M5: 금액제외 | O5: 5C24262EDF019EDE984EC7A8CF696D3A9B7B6372 | P5: T | Q5: F | R5: F | V5: 1 | AW5: 5B3AC60571119608B04E07769017605C24262EDF019EDE984EC7A8CF696D3A9B7B6372 | AY5: -
A6: 경비로 적용 | B6: 합계의 100% | C6: 식 | D6: 1 | E6: 0.00 | F6: =TRUNC(E6*D6,1) -> 0.0 | G6: 0.00 | H6: =TRUNC(G6*D6,1) -> 0.0 | I6: =TRUNC(SUMIF(V5:V6,RIGHTB(O6,1),L5:L6)*U6,2) -> 923,648.00 | J6: =TRUNC(I6*D6,1) -> 923,648.0 | K6: =TRUNC(E6+G6+I6,1) -> 923,648.00 | L6: =TRUNC(F6+H6+J6,1) -> 923,648.0 | N6: 5B3AC60571119608B04E0776901760 | O6: 5A2CA637E8E190954A12A731B256001 | P6: F | Q6: F | R6: F | S6: 3 | T6: 2 | U6: 1 | AW6: 5B3AC60571119608B04E07769017605A2CA637E8E190954A12A731B256001
A7: [ 합 계 ] | F7: =TRUNC(SUMIF(N5:N6,N4,F5:F6),0) -> 0.0 | H7: =TRUNC(SUMIF(N5:N6,N4,H5:H6),0) -> 0.0 | J7: =TRUNC(SUMIF(N5:N6,N4,J5:J6),0) -> 923,648.0 | L7: =F7+H7+J7 -> 923,648.0 | N7: TOTAL | O7: TOTAL
A9: 양중.하양장비 5톤, 사다리차[스카이] 일 공통 8-3 ( 호표 2 ) | N9: 5B3AC6057111960FFF34D7C771F667
A10: 이동식 양중 및 작업장비 | B10: 5ton, 스카이 | C10: HR | D10: 8 | E10: =일위대가목록!E28 -> 7,784.00 | F10: =TRUNC(E10*D10,1) -> 62,272.0 | G10: =일위대가목록!F28 -> 47,231.00 | H10: =TRUNC(G10*D10,1) -> 377,848.0 | I10: =일위대가목록!G28 -> 32,794.00 | J10: =TRUNC(I10*D10,1) -> 262,352.0 | K10: =TRUNC(E10+G10+I10,1) -> 87,809.00 | L10: =TRUNC(F10+H10+J10,1) -> 702,472.0 | M10: 금액제외 | O10: 5C24262EDF019EDE9842179246956EACF02C766B | P10: T | Q10: F | R10: F | V10: 1 | AW10: 5B3AC6057111960FFF34D7C771F6675C24262EDF019EDE9842179246956EACF02C766B | AY10: -
A11: 경비로 적용 | B11: 합계의 100% | C11: 식 | D11: 1 | E11: 0.00 | F11: =TRUNC(E11*D11,1) -> 0.0 | G11: 0.00 | H11: =TRUNC(G11*D11,1) -> 0.0 | I11: =TRUNC(SUMIF(V10:V11,RIGHTB(O11,1),L10:L11)*U11,2) -> 702,472.00 | J11: =TRUNC(I11*D11,1) -> 702,472.0 | K11: =TRUNC(E11+G11+I11,1) -> 702,472.00 | L11: =TRUNC(F11+H11+J11,1) -> 702,472.0 | N11: 5B3AC6057111960FFF34D7C771F667 | O11: 5A2CA637E8E190954A12A731B256001 | P11: F | Q11: F | R11: F | S11: 3 | T11: 2 | U11: 1 | AW11: 5B3AC6057111960FFF34D7C771F6675A2CA637E8E190954A12A731B256001
A12: [ 합 계 ] | F12: =TRUNC(SUMIF(N10:N11,N9,F10:F11),0) -> 0.0 | H12: =TRUNC(SUMIF(N10:N11,N9,H10:H11),0) -> 0.0 | J12: =TRUNC(SUMIF(N10:N11,N9,J10:J11),0) -> 702,472.0 | L12: =F12+H12+J12 -> 702,472.0 | N12: TOTAL | O12: TOTAL
A14: 건축물 현장정리 지붕방수 M2 공통 2-11-2 준용 ( 호표 3 ) | N14: 5B3AC600F71191453FAA47A8D9CF68
A15: 보통인부 | C15: 인 | D15: 0.0065 | E15: =단가대비표!O31 -> 0.00 | F15: =TRUNC(E15*D15,1) -> 0.0 | G15: =단가대비표!P31 -> 165,545.00 | H15: =TRUNC(G15*D15,1) -> 1,076.0 | I15: =단가대비표!V31 -> 0.00 | J15: =TRUNC(I15*D15,1) -> 0.0 | K15: =TRUNC(E15+G15+I15,1) -> 165,545.00 | L15: =TRUNC(F15+H15+J15,1) -> 1,076.0 | N15: 5B3AC600F71191453FAA47A8D9CF68 | O15: 5BEE76FDFE219C59F301E7ACC02B6397C104BA | P15: F | Q15: F | R15: T | AW15: 5B3AC600F71191453FAA47A8D9CF685BEE76FDFE219C59F301E7ACC02B6397C104BA
A16: [ 합 계 ] | F16: =TRUNC(SUMIF(N15:N15,N14,F15:F15),0) -> 0.0 | H16: =TRUNC(SUMIF(N15:N15,N14,H15:H15),0) -> 1,076.0 | J16: =TRUNC(SUMIF(N15:N15,N14,J15:J15),0) -> 0.0 | L16: =F16+H16+J16 -> 1,076.0 | N16: TOTAL | O16: TOTAL
A18: 레미콘타설[무근/펌프카] 슬럼프8~12cm M3 공통 6-1-4[2014] ( 호표 4 ) | N18: 5B3AE650516192054E84E76D34DE67
A19: 콘크리트공 | C19: 인 | D19: 0.0154 | E19: =단가대비표!O35 -> 0.00 | F19: =TRUNC(E19*D19,1) -> 0.0 | G19: =단가대비표!P35 -> 261,283.00 | H19: =TRUNC(G19*D19,1) -> 4,023.7 | I19: =단가대비표!V35 -> 0.00 | J19: =TRUNC(I19*D19,1) -> 0.0 | K19: =TRUNC(E19+G19+I19,1) -> 261,283.00 | L19: 4,023.7 | N19: 5B3AE650516192054E84E76D34DE67 | O19: 5BEE76FDFE219C59F301E7ACC02B6397C1055D | P19: F | Q19: F | R19: T | V19: 1 | AW19: 5B3AE650516192054E84E76D34DE675BEE76FDFE219C59F301E7ACC02B6397C1055D
A20: 특별인부 | C20: 인 | D20: 0.0077 | E20: =단가대비표!O32 -> 0.00 | F20: =TRUNC(E20*D20,1) -> 0.0 | G20: =단가대비표!P32 -> 214,222.00 | H20: =TRUNC(G20*D20,1) -> 1,649.5 | I20: =단가대비표!V32 -> 0.00 | J20: =TRUNC(I20*D20,1) -> 0.0 | K20: 214,222.00 | L20: 1,649.5 | N20: 5B3AE650516192054E84E76D34DE67 | O20: 5BEE76FDFE219C59F301E7ACC02B6397C104BB | P20: F | Q20: F | R20: T | V20: 1 | AW20: 5B3AE650516192054E84E76D34DE675BEE76FDFE219C59F301E7ACC02B6397C104BB
A21: 보통인부 | C21: 인 | D21: 0.0077 | E21: =단가대비표!O31 -> 0.00 | F21: =TRUNC(E21*D21,1) -> 0.0 | G21: =단가대비표!P31 -> 165,545.00 | H21: =TRUNC(G21*D21,1) -> 1,274.6 | I21: =단가대비표!V31 -> 0.00 | J21: =TRUNC(I21*D21,1) -> 0.0 | K21: 165,545.00 | L21: 1,274.6 | N21: 5B3AE650516192054E84E76D34DE67 | O21: 5BEE76FDFE219C59F301E7ACC02B6397C104BA | P21: F | Q21: F | R21: T | V21: 1 | AW21: 5B3AE650516192054E84E76D34DE675BEE76FDFE219C59F301E7ACC02B6397C104BA
A22: 공구손료 | B22: 인력품의 5% | C22: 식 | D22: 1 | E22: 0.00 | F22: =TRUNC(E22*D22,1) -> 0.0 | G22: 0.00 | H22: =TRUNC(G22*D22,1) -> 0.0 | I22: =TRUNC(SUMIF(V19:V23,RIGHTB(O22,1),H19:H23)*U22,2) -> 347.39 | J22: =TRUNC(I22*D22,1) -> 347.3 | K22: 347.30 | L22: 347.3 | N22: 5B3AE650516192054E84E76D34DE67 | O22: 5A2CA637E8E190954A12A731B256001 | P22: F | Q22: F | R22: F | S22: 1 | T22: 2 | U22: 0.05 | AW22: 5B3AE650516192054E84E76D34DE675A2CA637E8E190954A12A731B256001
A23: 콘크리트 펌프차 | B23: 32m(80∼95㎥/hr) | C23: HR | D23: 0.0615 | E23: =일위대가목록!E29 -> 29,707.00 | F23: =TRUNC(E23*D23,1) -> 1,826.9 | G23: =일위대가목록!F29 -> 55,700.00 | H23: =TRUNC(G23*D23,1) -> 3,425.5 | I23: =일위대가목록!G29 -> 65,589.00 | J23: =TRUNC(I23*D23,1) -> 4,033.7 | K23: 150,996.00 | L23: 9,286.1 | M23: 호표 26 | N23: 5B3AE650516192054E84E76D34DE67 | O23: 5C24262EDF0198B3669747405D9A6472ED3A8D7A | P23: T | Q23: F | R23: F | AW23: 5B3AE650516192054E84E76D34DE675C24262EDF0198B3669747405D9A6472ED3A8D7A
A24: [ 합 계 ] | F24: =TRUNC(SUMIF(N19:N23,N18,F19:F23),0) -> 1,826.0 | H24: =TRUNC(SUMIF(N19:N23,N18,H19:H23),0) -> 10,373.0 | J24: =TRUNC(SUMIF(N19:N23,N18,J19:J23),0) -> 4,381.0 | L24: =F24+H24+J24 -> 16,580.0 | N24: TOTAL | O24: TOTAL
A26: 쇠흙손 방수면 M2 공통 6-1-3 ( 호표 5 ) | N26: 5B3A56B49F419521317EF79255C765
A27: 미장공 | C27: 인 | D27: 0.0034 | E27: =단가대비표!O38 -> 0.00 | F27: =TRUNC(E27*D27,1) -> 0.0 | G27: =단가대비표!P38 -> 266,787.00 | H27: =TRUNC(G27*D27,1) -> 907.0 | I27: =단가대비표!V38 -> 0.00 | J27: =TRUNC(I27*D27,1) -> 0.0 | K27: =TRUNC(E27+G27+I27,1) -> 266,787.00 | L27: =TRUNC(F27+H27+J27,1) -> 907.0 | N27: 5B3A56B49F419521317EF79255C765 | O27: 5BEE76FDFE219C59F301E7ACC02B6397C10662 | P27: F | Q27: F | R27: T | AW27: 5B3A56B49F419521317EF79255C7655BEE76FDFE219C59F301E7ACC02B6397C10662
A28: [ 합 계 ] | F28: =TRUNC(SUMIF(N27:N27,N26,F27:F27),0) -> 0.0 | H28: =TRUNC(SUMIF(N27:N27,N26,H27:H27),0) -> 907.0 | J28: =TRUNC(SUMIF(N27:N27,N26,J27:J27),0) -> 0.0 | L28: =F28+H28+J28 -> 907.0 | N28: TOTAL | O28: TOTAL
A30: 적층형복합방수 바닥, 노출형 M2 전문견적 ( 호표 6 ) | N30: 5B3A56B49AC193E608771763A1486A
A31: 프라이머 | C31: KG | D31: 0.25 | E31: =단가대비표!O11 -> 5,800.00 | F31: =TRUNC(E31*D31,1) -> 1,450.0 | G31: =단가대비표!P11 -> 0.00 | H31: =TRUNC(G31*D31,1) -> 0.0 | I31: =단가대비표!V11 -> 0.00 | J31: =TRUNC(I31*D31,1) -> 0.0 | K31: =TRUNC(E31+G31+I31,1) -> 5,800.00 | L31: 1,450.0 | N31: 5B3A56B49AC193E608771763A1486A | O31: 5C36A6DECC7197801271F7BD01B56ABE4DBA0B | P31: F | Q31: F | R31: T | AW31: 5B3A56B49AC193E608771763A1486A5C36A6DECC7197801271F7BD01B56ABE4DBA0B
A32: 우레탄도막제 | B32: 노출 | C32: KG | D32: 3.6 | E32: =단가대비표!O12 -> 5,560.00 | F32: 20,016.0 | G32: =단가대비표!P12 -> 0.00 | H32: 0.0 | I32: =단가대비표!V12 -> 0.00 | J32: 0.0 | K32: 5,560.00 | L32: 20,016.0 | N32: 5B3A56B49AC193E608771763A1486A | O32: 5C36A6DECC7197801271F7BD01B56ABE4DB964 | P32: F | Q32: F | R32: T | AW32: 5B3A56B49AC193E608771763A1486A5C36A6DECC7197801271F7BD01B56ABE4DB964
A33: 펠트보강재 | B33: 중심보강재 | C33: M2 | D33: 1.08 | E33: =단가대비표!O13 -> 7,710.00 | F33: 8,326.8 | G33: =단가대비표!P13 -> 0.00 | H33: 0.0 | I33: =단가대비표!V13 -> 0.00 | J33: 0.0 | K33: 7,710.00 | L33: 8,326.8 | N33: 5B3A56B49AC193E608771763A1486A | O33: 5C36A6DECC7197801271F7BD01B56ABE4DB85D | P33: F | Q33: F | R33: T | AW33: 5B3A56B49AC193E608771763A1486A5C36A6DECC7197801271F7BD01B56ABE4DB85D
A34: 톱코트재 | B34: 자외선차단용 | C34: KG | D34: 0.3 | E34: =단가대비표!O14 -> 5,840.00 | F34: 1,752.0 | G34: =단가대비표!P14 -> 0.00 | H34: 0.0 | I34: =단가대비표!V14 -> 0.00 | J34: 0.0 | K34: 5,840.00 | L34: 1,752.0 | N34: 5B3A56B49AC193E608771763A1486A | O34: 5C36A6DECC7197801271F7BD01B56ABE4DBF8C | P34: F | Q34: F | R34: T | AW34: 5B3A56B49AC193E608771763A1486A5C36A6DECC7197801271F7BD01B56ABE4DBF8C
A35: 전용용제 | B35: 세척, 희석 | C35: KG | D35: 0.08 | E35: =단가대비표!O16 -> 3,590.00 | F35: 287.2 | G35: =단가대비표!P16 -> 0.00 | H35: 0.0 | I35: =단가대비표!V16 -> 0.00 | J35: 0.0 | K35: 3,590.00 | L35: 287.2 | N35: 5B3A56B49AC193E608771763A1486A | O35: 5C36A6DECC7197801271F7BD01B56ABE4DBDDF | P35: F | Q35: F | R35: T | AW35: 5B3A56B49AC193E608771763A1486A5C36A6DECC7197801271F7BD01B56ABE4DBDDF
A36: 방수공 | C36: 인 | D36: 0.05 | E36: =단가대비표!O37 -> 0.00 | F36: 0.0 | G36: =단가대비표!P37 -> 212,562.00 | H36: 10,628.1 | I36: =단가대비표!V37 -> 0.00 | J36: 0.0 | K36: 212,562.00 | L36: 10,628.1 | N36: 5B3A56B49AC193E608771763A1486A | O36: 5BEE76FDFE219C59F301E7ACC02B6397C10663 | P36: F | Q36: F | R36: T | AW36: 5B3A56B49AC193E608771763A1486A5BEE76FDFE219C59F301E7ACC02B6397C10663
A37: 보통인부 | C37: 인 | D37: 0.05 | E37: =단가대비표!O31 -> 0.00 | F37: 0.0 | G37: =단가대비표!P31 -> 165,545.00 | H37: 8,277.2 | I37: =단가대비표!V31 -> 0.00 | J37: 0.0 | K37: 165,545.00 | L37: 8,277.2 | N37: 5B3A56B49AC193E608771763A1486A | O37: 5BEE76FDFE219C59F301E7ACC02B6397C104BA | P37: F | Q37: F | R37: T | AW37: 5B3A56B49AC193E608771763A1486A5BEE76FDFE219C59F301E7ACC02B6397C104BA
A38: [ 합 계 ] | F38: =TRUNC(SUMIF(N31:N37,N30,F31:F37),0) -> 31,832.0 | H38: =TRUNC(SUMIF(N31:N37,N30,H31:H37),0) -> 18,905.0 | J38: =TRUNC(SUMIF(N31:N37,N30,J31:J37),0) -> 0.0 | L38: =F38+H38+J38 -> 50,737.0 | N38: TOTAL | O38: TOTAL
A40: 적층형복합방수 벽, 노출형 M2 전문견적 ( 호표 7 ) | N40: 5B3A56B49AC193E608771763A1756E
A41: 프라이머 | C41: KG | D41: 0.25 | E41: =단가대비표!O11 -> 5,800.00 | F41: =TRUNC(E41*D41,1) -> 1,450.0 | G41: =단가대비표!P11 -> 0.00 | H41: =TRUNC(G41*D41,1) -> 0.0 | I41: =단가대비표!V11 -> 0.00 | J41: =TRUNC(I41*D41,1) -> 0.0 | K41: =TRUNC(E41+G41+I41,1) -> 5,800.00 | L41: 1,450.0 | N41: 5B3A56B49AC193E608771763A1756E | O41: 5C36A6DECC7197801271F7BD01B56ABE4DBA0B | P41: F | Q41: F | R41: T | AW41: 5B3A56B49AC193E608771763A1756E5C36A6DECC7197801271F7BD01B56ABE4DBA0B
A42: 톱코트재 | B42: 자외선차단용 | C42: KG | D42: 0.3 | E42: =단가대비표!O14 -> 5,840.00 | F42: 1,752.0 | G42: =단가대비표!P14 -> 0.00 | H42: 0.0 | I42: =단가대비표!V14 -> 0.00 | J42: 0.0 | K42: 5,840.00 | L42: 1,752.0 | N42: 5B3A56B49AC193E608771763A1756E | O42: 5C36A6DECC7197801271F7BD01B56ABE4DBF8C | P42: F | Q42: F | R42: T | AW42: 5B3A56B49AC193E608771763A1756E5C36A6DECC7197801271F7BD01B56ABE4DBF8C
A43: 고점도씰재 | B43: 수직/코너보강 | C43: KG | D43: 1.2 | E43: =단가대비표!O15 -> 7,930.00 | F43: 9,516.0 | G43: =단가대비표!P15 -> 0.00 | H43: 0.0 | I43: =단가대비표!V15 -> 0.00 | J43: 0.0 | K43: 7,930.00 | L43: 9,516.0 | N43: 5B3A56B49AC193E608771763A1756E | O43: 5C36A6DECC7197801271F7BD01B56ABE4DBEE6 | P43: F | Q43: F | R43: T | AW43: 5B3A56B49AC193E608771763A1756E5C36A6DECC7197801271F7BD01B56ABE4DBEE6
A44: 전용용제 | B44: 세척, 희석 | C44: KG | D44: 0.05 | E44: =단가대비표!O16 -> 3,590.00 | F44: 179.5 | G44: =단가대비표!P16 -> 0.00 | H44: 0.0 | I44: =단가대비표!V16 -> 0.00 | J44: 0.0 | K44: 3,590.00 | L44: 179.5 | N44: 5B3A56B49AC193E608771763A1756E | O44: 5C36A6DECC7197801271F7BD01B56ABE4DBDDF | P44: F | Q44: F | R44: T | AW44: 5B3A56B49AC193E608771763A1756E5C36A6DECC7197801271F7BD01B56ABE4DBDDF
A45: 방수공 | C45: 인 | D45: 0.06 | E45: =단가대비표!O37 -> 0.00 | F45: 0.0 | G45: =단가대비표!P37 -> 212,562.00 | H45: 12,753.7 | I45: =단가대비표!V37 -> 0.00 | J45: 0.0 | K45: 212,562.00 | L45: 12,753.7 | N45: 5B3A56B49AC193E608771763A1756E | O45: 5BEE76FDFE219C59F301E7ACC02B6397C10663 | P45: F | Q45: F | R45: T | AW45: 5B3A56B49AC193E608771763A1756E5BEE76FDFE219C59F301E7ACC02B6397C10663
A46: 보통인부 | C46: 인 | D46: 0.065 | E46: =단가대비표!O31 -> 0.00 | F46: 0.0 | G46: =단가대비표!P31 -> 165,545.00 | H46: 10,760.4 | I46: =단가대비표!V31 -> 0.00 | J46: 0.0 | K46: 165,545.00 | L46: 10,760.4 | N46: 5B3A56B49AC193E608771763A1756E | O46: 5BEE76FDFE219C59F301E7ACC02B6397C104BA | P46: F | Q46: F | R46: T | AW46: 5B3A56B49AC193E608771763A1756E5BEE76FDFE219C59F301E7ACC02B6397C104BA
A47: [ 합 계 ] | F47: =TRUNC(SUMIF(N41:N46,N40,F41:F46),0) -> 12,897.0 | H47: =TRUNC(SUMIF(N41:N46,N40,H41:H46),0) -> 23,514.0 | J47: =TRUNC(SUMIF(N41:N46,N40,J41:J46),0) -> 0.0 | L47: =F47+H47+J47 -> 36,411.0 | N47: TOTAL | O47: TOTAL
A49: 자연트렌치조성 W300 M ( 호표 8 ) | N49: 5B3A56B75AB19B3A6CCC572BC1B467
A50: 콘크리트공 | C50: 인 | D50: 0.01 | E50: =단가대비표!O35 -> 0.00 | F50: =TRUNC(E50*D50,1) -> 0.0 | G50: =단가대비표!P35 -> 261,283.00 | H50: =TRUNC(G50*D50,1) -> 2,612.8 | I50: =단가대비표!V35 -> 0.00 | J50: =TRUNC(I50*D50,1) -> 0.0 | K50: =TRUNC(E50+G50+I50,1) -> 261,283.00 | L50: =TRUNC(F50+H50+J50,1) -> 2,612.8 | N50: 5B3A56B75AB19B3A6CCC572BC1B467 | O50: 5BEE76FDFE219C59F301E7ACC02B6397C1055D | P50: F | Q50: F | R50: T | AW50: 5B3A56B75AB19B3A6CCC572BC1B4675BEE76FDFE219C59F301E7ACC02B6397C1055D
A51: 방수공 | C51: 인 | D51: 0.01 | E51: =단가대비표!O37 -> 0.00 | F51: =TRUNC(E51*D51,1) -> 0.0 | G51: =단가대비표!P37 -> 212,562.00 | H51: =TRUNC(G51*D51,1) -> 2,125.6 | I51: =단가대비표!V37 -> 0.00 | J51: =TRUNC(I51*D51,1) -> 0.0 | K51: =TRUNC(E51+G51+I51,1) -> 212,562.00 | L51: =TRUNC(F51+H51+J51,1) -> 2,125.6 | N51: 5B3A56B75AB19B3A6CCC572BC1B467 | O51: 5BEE76FDFE219C59F301E7ACC02B6397C10663 | P51: F | Q51: F | R51: T | AW51: 5B3A56B75AB19B3A6CCC572BC1B4675BEE76FDFE219C59F301E7ACC02B6397C10663
A52: [ 합 계 ] | F52: =TRUNC(SUMIF(N50:N51,N49,F50:F51),0) -> 0.0 | H52: =TRUNC(SUMIF(N50:N51,N49,H50:H51),0) -> 4,738.0 | J52: =TRUNC(SUMIF(N50:N51,N49,J50:J51),0) -> 0.0 | L52: =F52+H52+J52 -> 4,738.0 | N52: TOTAL | O52: TOTAL
A54: 루프드레인설치 주철, Ø100mm, L형 EA 건축 7-3-1 ( 호표 9 ) | N54: 5B3A161E40F19B6C6A0367ECED9B6E
A55: 루프드레인(L형) | B55: ISRD8570, Ø100mm | C55: EA | D55: 1 | E55: =단가대비표!O21 -> 64,923.00 | F55: =TRUNC(E55*D55,1) -> 64,923.0 | G55: =단가대비표!P21 -> 0.00 | H55: =TRUNC(G55*D55,1) -> 0.0 | I55: =단가대비표!V21 -> 0.00 | J55: =TRUNC(I55*D55,1) -> 0.0 | K55: =TRUNC(E55+G55+I55,1) -> 64,923.00 | L55: 64,923.0 | N55: 5B3A161E40F19B6C6A0367ECED9B6E | O55: 5C1BB65D03D1936AC71E276C4B536BCA54E0F0 | P55: F | Q55: F | R55: T | V55: 1 | AW55: 5B3A161E40F19B6C6A0367ECED9B6E5C1BB65D03D1936AC71E276C4B536BCA54E0F0
A56: 잡재료 및 소모재료(방수시멘트등) | B56: 재료비의 2% | C56: 식 | D56: 1 | E56: =TRUNC(SUMIF(V55:V57,RIGHTB(O56,1),F55:F57)*U56,2) -> 1,298.46 | F56: =TRUNC(E56*D56,1) -> 1,298.4 | G56: 0.00 | H56: =TRUNC(G56*D56,1) -> 0.0 | I56: 0.00 | J56: =TRUNC(I56*D56,1) -> 0.0 | K56: 1,298.40 | L56: 1,298.4 | N56: 5B3A161E40F19B6C6A0367ECED9B6E | O56: 5A2CA637E8E190954A12A731B256001 | P56: F | Q56: F | R56: F | S56: 0 | T56: 0 | U56: 0.02 | AW56: 5B3A161E40F19B6C6A0367ECED9B6E5A2CA637E8E190954A12A731B256001
A57: 드레인설치_노무비 | C57: EA | D57: 1 | E57: =일위대가목록!E30 -> 0.00 | F57: =TRUNC(E57*D57,1) -> 0.0 | G57: =일위대가목록!F30 -> 45,633.00 | H57: =TRUNC(G57*D57,1) -> 45,633.0 | I57: =일위대가목록!G30 -> 0.00 | J57: =TRUNC(I57*D57,1) -> 0.0 | K57: 45,633.00 | L57: 45,633.0 | M57: 호표 27 | N57: 5B3A161E40F19B6C6A0367ECED9B6E | O57: 5B3A161E40F19B6C6A01A726842767 | P57: T | Q57: F | R57: F | AW57: 5B3A161E40F19B6C6A0367ECED9B6E5B3A161E40F19B6C6A01A726842767
A58: [ 합 계 ] | F58: =TRUNC(SUMIF(N55:N57,N54,F55:F57),0) -> 66,221.0 | H58: =TRUNC(SUMIF(N55:N57,N54,H55:H57),0) -> 45,633.0 | J58: =TRUNC(SUMIF(N55:N57,N54,J55:J57),0) -> 0.0 | L58: =F58+H58+J58 -> 111,854.0 | N58: TOTAL | O58: TOTAL
A60: 수밀코킹 □10*10mm M 건축 6-6-1 ( 호표 10 ) | N60: 5B3A06382F019553F2B6A7916C606C
A61: 실리콘 | B61: 조인트용 | C61: L | D61: 0.12 | E61: =단가대비표!O25 -> 10,000.00 | F61: =TRUNC(E61*D61,1) -> 1,200.0 | G61: =단가대비표!P25 -> 0.00 | H61: =TRUNC(G61*D61,1) -> 0.0 | I61: =단가대비표!V25 -> 0.00 | J61: =TRUNC(I61*D61,1) -> 0.0 | K61: =TRUNC(E61+G61+I61,1) -> 10,000.00 | L61: =TRUNC(F61+H61+J61,1) -> 1,200.0 | N61: 5B3A06382F019553F2B6A7916C606C | O61: 5C1BA6B7A2A191E5EBDAF7EB1326673FCFD3CF | P61: F | Q61: F | R61: T | AW61: 5B3A06382F019553F2B6A7916C606C5C1BA6B7A2A191E5EBDAF7EB1326673FCFD3CF
A62: 수밀코킹_노무비 | C62: M | D62: 1 | E62: =일위대가목록!E31 -> 0.00 | F62: =TRUNC(E62*D62,1) -> 0.0 | G62: =일위대가목록!F31 -> 5,015.00 | H62: =TRUNC(G62*D62,1) -> 5,015.0 | I62: =일위대가목록!G31 -> 0.00 | J62: =TRUNC(I62*D62,1) -> 0.0 | K62: =TRUNC(E62+G62+I62,1) -> 5,015.00 | L62: =TRUNC(F62+H62+J62,1) -> 5,015.0 | M62: 호표 28 | N62: 5B3A06382F019553F2B6A7916C606C | O62: 5B3A06382F0195503D256744A2246E | P62: T | Q62: F | R62: F | AW62: 5B3A06382F019553F2B6A7916C606C5B3A06382F0195503D256744A2246E
A63: [ 합 계 ] | F63: =TRUNC(SUMIF(N61:N62,N60,F61:F62),0) -> 1,200.0 | H63: =TRUNC(SUMIF(N61:N62,N60,H61:H62),0) -> 5,015.0 | J63: =TRUNC(SUMIF(N61:N62,N60,J61:J62),0) -> 0.0 | L63: =F63+H63+J63 -> 6,215.0 | N63: TOTAL | O63: TOTAL
A65: 와이어메쉬깔기 #8-150*150 M2 건축 8-1-3 ( 호표 11 ) | N65: 5B3A669FB6719086E1A48700B58765
A66: 와이어메쉬 | B66: #8-150*150 | C66: M2 | D66: 1.1 | E66: =단가대비표!O20 -> 1,728.00 | F66: =TRUNC(E66*D66,1) -> 1,900.8 | G66: =단가대비표!P20 -> 0.00 | H66: =TRUNC(G66*D66,1) -> 0.0 | I66: =단가대비표!V20 -> 0.00 | J66: =TRUNC(I66*D66,1) -> 0.0 | K66: =TRUNC(E66+G66+I66,1) -> 1,728.00 | L66: 1,900.8 | N66: 5B3A669FB6719086E1A48700B58765 | O66: 5C1BB65D07419C8FE09647C6743F6B85F6A801 | P66: F | Q66: F | R66: T | V66: 1 | AW66: 5B3A669FB6719086E1A48700B587655C1BB65D07419C8FE09647C6743F6B85F6A801
A67: 부재료 | B67: 주재료비의 3% | C67: 식 | D67: 1 | E67: =TRUNC(SUMIF(V66:V68,RIGHTB(O67,1),F66:F68)*U67,2) -> 57.02 | F67: =TRUNC(E67*D67,1) -> 57.0 | G67: 0.00 | H67: =TRUNC(G67*D67,1) -> 0.0 | I67: 0.00 | J67: =TRUNC(I67*D67,1) -> 0.0 | K67: 57.00 | L67: 57.0 | N67: 5B3A669FB6719086E1A48700B58765 | O67: 5A2CA637E8E190954A12A731B256001 | P67: F | Q67: F | R67: F | S67: 0 | T67: 0 | U67: 0.03 | AW67: 5B3A669FB6719086E1A48700B587655A2CA637E8E190954A12A731B256001
A68: 와이어메쉬깔기_노무비 | C68: M2 | D68: 1 | E68: =일위대가목록!E32 -> 0.00 | F68: =TRUNC(E68*D68,1) -> 0.0 | G68: =일위대가목록!F32 -> 1,285.00 | H68: =TRUNC(G68*D68,1) -> 1,285.0 | I68: =일위대가목록!G32 -> 0.00 | J68: =TRUNC(I68*D68,1) -> 0.0 | K68: 1,285.00 | L68: 1,285.0 | M68: 호표 29 | N68: 5B3A669FB6719086E1A48700B58765 | O68: 5B3A669FB6719086E1ACD743466A66 | P68: T | Q68: F | R68: F | AW68: 5B3A669FB6719086E1A48700B587655B3A669FB6719086E1ACD743466A66
A69: [ 합 계 ] | F69: =TRUNC(SUMIF(N66:N68,N65,F66:F68),0) -> 1,957.0 | H69: =TRUNC(SUMIF(N66:N68,N65,H66:H68),0) -> 1,285.0 | J69: =TRUNC(SUMIF(N66:N68,N65,J66:J68),0) -> 0.0 | L69: =F69+H69+J69 -> 3,242.0 | N69: TOTAL | O69: TOTAL
A71: AL 후레싱 35*150*455*55*3.0mm(30*30틀)+코킹, PVDF2 M 건축 8-3-1 ( 호표 12 ) | N71: 5B3A669D81C19536E9D7374439F466
A72: 스틸파이프설치 | B72: 30*30*1.6mm | C72: M | D72: 3 | E72: =일위대가목록!E33 -> 1,956.00 | F72: =TRUNC(E72*D72,1) -> 5,868.0 | G72: =일위대가목록!F33 -> 7,189.00 | H72: =TRUNC(G72*D72,1) -> 21,567.0 | I72: =일위대가목록!G33 -> 366.00 | J72: =TRUNC(I72*D72,1) -> 1,098.0 | K72: =TRUNC(E72+G72+I72,1) -> 9,511.00 | L72: 28,533.0 | M72: 호표 30 | N72: 5B3A669D81C19536E9D7374439F466 | O72: 5B3A66992AB1928F1139B7602BFE64 | P72: T | Q72: F | R72: F | AW72: 5B3A669D81C19536E9D7374439F4665B3A66992AB1928F1139B7602BFE64
A73: 스틸파이프설치 | B73: 30*30*1.6mm | C73: M | D73: 1.1111 | E73: =일위대가목록!E33 -> 1,956.00 | F73: =TRUNC(E73*D73,1) -> 2,173.3 | G73: =일위대가목록!F33 -> 7,189.00 | H73: =TRUNC(G73*D73,1) -> 7,987.6 | I73: =일위대가목록!G33 -> 366.00 | J73: =TRUNC(I73*D73,1) -> 406.6 | K73: 9,511.00 | L73: 10,567.5 | M73: 호표 30 | N73: 5B3A669D81C19536E9D7374439F466 | O73: 5B3A66992AB1928F1139B7602BFE64 | P73: T | Q73: F | R73: F | AW73: 5B3A669D81C19536E9D7374439F4665B3A66992AB1928F1139B7602BFE64
A74: 알루미늄판설치 | B74: 3.0mm, 불소P | C74: M2 | D74: 0.695 | E74: =일위대가목록!E34 -> 56,076.00 | F74: =TRUNC(E74*D74,1) -> 38,972.8 | G74: =일위대가목록!F34 -> 45,177.00 | H74: =TRUNC(G74*D74,1) -> 31,398.0 | I74: =일위대가목록!G34 -> 2,295.00 | J74: =TRUNC(I74*D74,1) -> 1,595.0 | K74: 103,548.00 | L74: 71,965.8 | M74: 호표 31 | N74: 5B3A669D81C19536E9D7374439F466 | O74: 5B3A6698070191A7DC4C17DC741360 | P74: T | Q74: F | R74: F | AW74: 5B3A669D81C19536E9D7374439F4665B3A6698070191A7DC4C17DC741360
A75: 수밀코킹 | B75: △10*10mm | C75: M | D75: 2 | E75: =일위대가목록!E35 -> 600.00 | F75: =TRUNC(E75*D75,1) -> 1,200.0 | G75: =일위대가목록!F35 -> 5,015.00 | H75: =TRUNC(G75*D75,1) -> 10,030.0 | I75: =일위대가목록!G35 -> 0.00 | J75: =TRUNC(I75*D75,1) -> 0.0 | K75: 5,615.00 | L75: 11,230.0 | M75: 호표 32 | N75: 5B3A669D81C19536E9D7374439F466 | O75: 5B3A06382F019553F2B58705FA8065 | P75: T | Q75: F | R75: F | AW75: 5B3A669D81C19536E9D7374439F4665B3A06382F019553F2B58705FA8065
A76: [ 합 계 ] | F76: =TRUNC(SUMIF(N72:N75,N71,F72:F75),0) -> 48,214.0 | H76: =TRUNC(SUMIF(N72:N75,N71,H72:H75),0) -> 70,982.0 | J76: =TRUNC(SUMIF(N72:N75,N71,J72:J75),0) -> 3,099.0 | L76: =F76+H76+J76 -> 122,295.0 | N76: TOTAL | O76: TOTAL
A78: 친환경수성페인트 외벽, 2회. 롤러(기존도장면) M2 건축 11-2-2 ( 호표 13 ) | N78: 5B3BC6F1168193A0BA6BC79F274065
A79: 바탕만들기[기존도장면] | B79: 벽 | C79: M2 | D79: 1 | E79: =일위대가목록!E43 -> 42.00 | F79: =TRUNC(E79*D79,1) -> 42.0 | G79: =일위대가목록!F43 -> 1,419.00 | H79: =TRUNC(G79*D79,1) -> 1,419.0 | I79: =일위대가목록!G43 -> 0.00 | J79: =TRUNC(I79*D79,1) -> 0.0 | K79: =TRUNC(E79+G79+I79,1) -> 1,461.00 | L79: 1,461.0 | M79: 호표 40 | N79: 5B3BC6F1168193A0BA6BC79F274065 | O79: 5B3BC6F114D195C4718B77D6040163 | P79: T | Q79: F | R79: F | AW79: 5B3BC6F1168193A0BA6BC79F2740655B3BC6F114D195C4718B77D6040163
A80: 수성페인트[친환경]_재료비 | B80: 2회, 붓, 롤러칠 | C80: M2 | D80: 1 | E80: =일위대가목록!E44 -> 1,099.00 | F80: =TRUNC(E80*D80,1) -> 1,099.0 | G80: =일위대가목록!F44 -> 0.00 | H80: =TRUNC(G80*D80,1) -> 0.0 | I80: =일위대가목록!G44 -> 0.00 | J80: =TRUNC(I80*D80,1) -> 0.0 | K80: 1,099.00 | L80: 1,099.0 | M80: 호표 41 | N80: 5B3BC6F1168193A0BA6BC79F274065 | O80: 5B3BC6F1168193A14017A750C07569 | P80: T | Q80: F | R80: F | AW80: 5B3BC6F1168193A0BA6BC79F2740655B3BC6F1168193A14017A750C07569
A81: 수성페인트_노무비 | B81: 벽(바닥), 1회, 롤러칠 | C81: M2 | D81: 2 | E81: =일위대가목록!E45 -> 0.00 | F81: =TRUNC(E81*D81,1) -> 0.0 | G81: =일위대가목록!F45 -> 3,340.00 | H81: =TRUNC(G81*D81,1) -> 6,680.0 | I81: =일위대가목록!G45 -> 66.00 | J81: =TRUNC(I81*D81,1) -> 132.0 | K81: 3,406.00 | L81: 6,812.0 | M81: 호표 42 | N81: 5B3BC6F1168193A0BA6BC79F274065 | O81: 5B3BC6F115F19CEF99EC8782876B6D | P81: T | Q81: F | R81: F | AW81: 5B3BC6F1168193A0BA6BC79F2740655B3BC6F115F19CEF99EC8782876B6D
A82: [ 합 계 ] | F82: =TRUNC(SUMIF(N79:N81,N78,F79:F81),0) -> 1,141.0 | H82: =TRUNC(SUMIF(N79:N81,N78,H79:H81),0) -> 8,099.0 | J82: =TRUNC(SUMIF(N79:N81,N78,J79:J81),0) -> 132.0 | L82: =F82+H82+J82 -> 9,372.0 | N82: TOTAL | O82: TOTAL
A84: 배수파이프설치 PVC, Ø100, VG2 M 기계 1-5-1 ( 호표 14 ) | N84: 5B3B96BED5319F0C8FC0A77F335260
A85: PVC 파이프 | B85: Ø100mm, VG2 | C85: M | D85: 1.05 | E85: =단가대비표!O28 -> 5,800.00 | F85: =TRUNC(E85*D85,1) -> 6,090.0 | G85: =단가대비표!P28 -> 0.00 | H85: =TRUNC(G85*D85,1) -> 0.0 | I85: =단가대비표!V28 -> 0.00 | J85: =TRUNC(I85*D85,1) -> 0.0 | K85: =TRUNC(E85+G85+I85,1) -> 5,800.00 | L85: 6,090.0 | N85: 5B3B96BED5319F0C8FC0A77F335260 | O85: 5C63D696C5F19D308F9E271A5D5B6759D19645 | P85: F | Q85: F | R85: T | V85: 1 | AW85: 5B3B96BED5319F0C8FC0A77F3352605C63D696C5F19D308F9E271A5D5B6759D19645
A86: 잡재료비 | B86: 관의 3% | C86: 식 | D86: 1 | E86: =TRUNC(SUMIF(V85:V87,RIGHTB(O86,1),F85:F87)*U86,2) -> 182.70 | F86: =TRUNC(E86*D86,1) -> 182.7 | G86: 0.00 | H86: =TRUNC(G86*D86,1) -> 0.0 | I86: 0.00 | J86: =TRUNC(I86*D86,1) -> 0.0 | K86: 182.70 | L86: 182.7 | N86: 5B3B96BED5319F0C8FC0A77F335260 | O86: 5A2CA637E8E190954A12A731B256001 | P86: F | Q86: F | R86: F | S86: 0 | T86: 0 | U86: 0.03 | AW86: 5B3B96BED5319F0C8FC0A77F3352605A2CA637E8E190954A12A731B256001
A87: PVC관 배관비 | B87: Ø100이하 | C87: M | D87: 1 | E87: =일위대가목록!E46 -> 0.00 | F87: =TRUNC(E87*D87,1) -> 0.0 | G87: =일위대가목록!F46 -> 45,984.00 | H87: =TRUNC(G87*D87,1) -> 45,984.0 | I87: =일위대가목록!G46 -> 919.00 | J87: =TRUNC(I87*D87,1) -> 919.0 | K87: 46,903.00 | L87: 46,903.0 | M87: 호표 43 | N87: 5B3B96BED5319F0C8FC0A77F335260 | O87: 5B3B96BED5319F0D963137615C666F | P87: T | Q87: F | R87: F | AW87: 5B3B96BED5319F0C8FC0A77F3352605B3B96BED5319F0D963137615C666F
A88: [ 합 계 ] | F88: =TRUNC(SUMIF(N85:N87,N84,F85:F87),0) -> 6,272.0 | H88: =TRUNC(SUMIF(N85:N87,N84,H85:H87),0) -> 45,984.0 | J88: =TRUNC(SUMIF(N85:N87,N84,J85:J87),0) -> 919.0 | L88: =F88+H88+J88 -> 53,175.0 | N88: TOTAL | O88: TOTAL
A90: 경량콘크리트철거(+와어어메쉬) 장비(브레이커) M3 ( 호표 15 ) | N90: 5B3B96B84DD19AB7F55DE7D9336B67
A91: 착암공 | C91: 인 | D91: 0.37 | E91: =단가대비표!O36 -> 0.00 | F91: =TRUNC(E91*D91,1) -> 0.0 | G91: =단가대비표!P36 -> 210,152.00 | H91: =TRUNC(G91*D91,1) -> 77,756.2 | I91: =단가대비표!V36 -> 0.00 | J91: =TRUNC(I91*D91,1) -> 0.0 | K91: =TRUNC(E91+G91+I91,1) -> 210,152.00 | L91: 77,756.2 | N91: 5B3B96B84DD19AB7F55DE7D9336B67 | O91: 5BEE76FDFE219C59F301E7ACC02B6397C1055B | P91: F | Q91: F | R91: T | V91: 1 | AW91: 5B3B96B84DD19AB7F55DE7D9336B675BEE76FDFE219C59F301E7ACC02B6397C1055B
A92: 보통인부 | C92: 인 | D92: 0.27 | E92: =단가대비표!O31 -> 0.00 | F92: =TRUNC(E92*D92,1) -> 0.0 | G92: =단가대비표!P31 -> 165,545.00 | H92: =TRUNC(G92*D92,1) -> 44,697.1 | I92: =단가대비표!V31 -> 0.00 | J92: =TRUNC(I92*D92,1) -> 0.0 | K92: 165,545.00 | L92: 44,697.1 | N92: 5B3B96B84DD19AB7F55DE7D9336B67 | O92: 5BEE76FDFE219C59F301E7ACC02B6397C104BA | P92: F | Q92: F | R92: T | V92: 1 | AW92: 5B3B96B84DD19AB7F55DE7D9336B675BEE76FDFE219C59F301E7ACC02B6397C104BA
A93: 소형브레이커(전기식). | B93: 1.5kw | C93: HR | D93: 1 | E93: =일위대가목록!E47 -> 0.00 | F93: =TRUNC(E93*D93,1) -> 0.0 | G93: =일위대가목록!F47 -> 0.00 | H93: =TRUNC(G93*D93,1) -> 0.0 | I93: =일위대가목록!G47 -> 310.00 | J93: =TRUNC(I93*D93,1) -> 310.0 | K93: 310.00 | L93: 310.0 | M93: 호표 44 | N93: 5B3B96B84DD19AB7F55DE7D9336B67 | O93: 5C24262EDF01995F503117D5F8C36AD331FC225B | P93: T | Q93: F | R93: F | AW93: 5B3B96B84DD19AB7F55DE7D9336B675C24262EDF01995F503117D5F8C36AD331FC225B
A94: 잡재료비(치즐등) | B94: 인력품의 1% | C94: 식 | D94: 1 | E94: =TRUNC(SUMIF(V91:V94,RIGHTB(O94,1),H91:H94)*U94,2) -> 1,224.53 | F94: =TRUNC(E94*D94,1) -> 1,224.5 | G94: 0.00 | H94: =TRUNC(G94*D94,1) -> 0.0 | I94: 0.00 | J94: =TRUNC(I94*D94,1) -> 0.0 | K94: 1,224.50 | L94: 1,224.5 | N94: 5B3B96B84DD19AB7F55DE7D9336B67 | O94: 5A2CA637E8E190954A12A731B256001 | P94: F | Q94: F | R94: F | S94: 1 | T94: 0 | U94: 0.01 | AW94: 5B3B96B84DD19AB7F55DE7D9336B675A2CA637E8E190954A12A731B256001
A95: [ 합 계 ] | F95: =TRUNC(SUMIF(N91:N94,N90,F91:F94),0) -> 1,224.0 | H95: =TRUNC(SUMIF(N91:N94,N90,H91:H94),0) -> 122,453.0 | J95: =TRUNC(SUMIF(N91:N94,N90,J91:J94),0) -> 310.0 | L95: =F95+H95+J95 -> 123,987.0 | N95: TOTAL | O95: TOTAL
A97: 시멘트벽돌철거 소형장비(브레이커) M3 ( 호표 16 ) | N97: 5B3B96B84DD19ABC7796A77AAC756E
A98: 보통인부 | C98: 인 | D98: 0.33 | E98: =단가대비표!O31 -> 0.00 | F98: =TRUNC(E98*D98,1) -> 0.0 | G98: =단가대비표!P31 -> 165,545.00 | H98: =TRUNC(G98*D98,1) -> 54,629.8 | I98: =단가대비표!V31 -> 0.00 | J98: =TRUNC(I98*D98,1) -> 0.0 | K98: =TRUNC(E98+G98+I98,1) -> 165,545.00 | L98: 54,629.8 | N98: 5B3B96B84DD19ABC7796A77AAC756E | O98: 5BEE76FDFE219C59F301E7ACC02B6397C104BA | P98: F | Q98: F | R98: T | V98: 1 | AW98: 5B3B96B84DD19ABC7796A77AAC756E5BEE76FDFE219C59F301E7ACC02B6397C104BA
A99: 소형브레이커(전기식). | B99: 1.5kw | C99: HR | D99: 3.77 | E99: =일위대가목록!E47 -> 0.00 | F99: =TRUNC(E99*D99,1) -> 0.0 | G99: =일위대가목록!F47 -> 0.00 | H99: =TRUNC(G99*D99,1) -> 0.0 | I99: =일위대가목록!G47 -> 310.00 | J99: =TRUNC(I99*D99,1) -> 1,168.7 | K99: 310.00 | L99: 1,168.7 | M99: 호표 44 | N99: 5B3B96B84DD19ABC7796A77AAC756E | O99: 5C24262EDF01995F503117D5F8C36AD331FC225B | P99: T | Q99: F | R99: F | AW99: 5B3B96B84DD19ABC7796A77AAC756E5C24262EDF01995F503117D5F8C36AD331FC225B
A100: 잡재료(치즐등) | B100: 인력품의 1% | C100: 식 | D100: 1 | E100: =TRUNC(SUMIF(V98:V100,RIGHTB(O100,1),H98:H100)*U100,2) -> 546.29 | F100: =TRUNC(E100*D100,1) -> 546.2 | G100: 0.00 | H100: =TRUNC(G100*D100,1) -> 0.0 | I100: 0.00 | J100: =TRUNC(I100*D100,1) -> 0.0 | K100: 546.20 | L100: 546.2 | N100: 5B3B96B84DD19ABC7796A77AAC756E | O100: 5A2CA637E8E190954A12A731B256001 | P100: F | Q100: F | R100: F | S100: 1 | T100: 0 | U100: 0.01 | AW100: 5B3B96B84DD19ABC7796A77AAC756E5A2CA637E8E190954A12A731B256001
A101: [ 합 계 ] | F101: =TRUNC(SUMIF(N98:N100,N97,F98:F100),0) -> 546.0 | H101: =TRUNC(SUMIF(N98:N100,N97,H98:H100),0) -> 54,629.0 | J101: =TRUNC(SUMIF(N98:N100,N97,J98:J100),0) -> 1,168.0 | L101: =F101+H101+J101 -> 56,343.0 | N101: TOTAL | O101: TOTAL
A103: 도막방수철거 바닥 M2 유지 3-2-11(2023) ( 호표 17 ) | N103: 5B3B96B84DD19ABD1E0347D26BEC64
A104: 방수공 | C104: 인 | D104: 0.007 | E104: =단가대비표!O37 -> 0.00 | F104: =TRUNC(E104*D104,1) -> 0.0 | G104: =단가대비표!P37 -> 212,562.00 | H104: =TRUNC(G104*D104,1) -> 1,487.9 | I104: =단가대비표!V37 -> 0.00 | J104: =TRUNC(I104*D104,1) -> 0.0 | K104: =TRUNC(E104+G104+I104,1) -> 212,562.00 | L104: 1,487.9 | N104: 5B3B96B84DD19ABD1E0347D26BEC64 | O104: 5BEE76FDFE219C59F301E7ACC02B6397C10663 | P104: F | Q104: F | R104: T | V104: 1 | AW104: 5B3B96B84DD19ABD1E0347D26BEC645BEE76FDFE219C59F301E7ACC02B6397C10663
A105: 보통인부 | C105: 인 | D105: 0.003 | E105: =단가대비표!O31 -> 0.00 | F105: =TRUNC(E105*D105,1) -> 0.0 | G105: =단가대비표!P31 -> 165,545.00 | H105: =TRUNC(G105*D105,1) -> 496.6 | I105: =단가대비표!V31 -> 0.00 | J105: =TRUNC(I105*D105,1) -> 0.0 | K105: 165,545.00 | L105: 496.6 | N105: 5B3B96B84DD19ABD1E0347D26BEC64 | O105: 5BEE76FDFE219C59F301E7ACC02B6397C104BA | P105: F | Q105: F | R105: T | V105: 1 | AW105: 5B3B96B84DD19ABD1E0347D26BEC645BEE76FDFE219C59F301E7ACC02B6397C104BA
A106: 공구 및 경장비손료(엔진송풍기,연마기둥) | B106: 인력품의 6% | C106: 식 | D106: 1 | E106: 0.00 | F106: =TRUNC(E106*D106,1) -> 0.0 | G106: 0.00 | H106: =TRUNC(G106*D106,1) -> 0.0 | I106: =TRUNC(SUMIF(V104:V106,RIGHTB(O106,1),H104:H106)*U106,2) -> 119.07 | J106: =TRUNC(I106*D106,1) -> 119.0 | K106: 119.00 | L106: 119.0 | N106: 5B3B96B84DD19ABD1E0347D26BEC64 | O106: 5A2CA637E8E190954A12A731B256001 | P106: F | Q106: F | R106: F | S106: 1 | T106: 2 | U106: 0.06 | AW106: 5B3B96B84DD19ABD1E0347D26BEC645A2CA637E8E190954A12A731B256001
A107: [ 합 계 ] | F107: =TRUNC(SUMIF(N104:N106,N103,F104:F106),0) -> 0.0 | H107: =TRUNC(SUMIF(N104:N106,N103,H104:H106),0) -> 1,984.0 | J107: =TRUNC(SUMIF(N104:N106,N103,J104:J106),0) -> 119.0 | L107: =F107+H107+J107 -> 2,103.0 | N107: TOTAL | O107: TOTAL
A109: 시트방수철거 바닥 M2 유지 3-2-11(2023) ( 호표 18 ) | N109: 5B3B96B84DD19ABD1E0347ECDE9A6D
A110: 방수공 | C110: 인 | D110: 0.007 | E110: =단가대비표!O37 -> 0.00 | F110: =TRUNC(E110*D110,1) -> 0.0 | G110: =단가대비표!P37 -> 212,562.00 | H110: =TRUNC(G110*D110,1) -> 1,487.9 | I110: =단가대비표!V37 -> 0.00 | J110: =TRUNC(I110*D110,1) -> 0.0 | K110: =TRUNC(E110+G110+I110,1) -> 212,562.00 | L110: 1,487.9 | N110: 5B3B96B84DD19ABD1E0347ECDE9A6D | O110: 5BEE76FDFE219C59F301E7ACC02B6397C10663 | P110: F | Q110: F | R110: T | V110: 1 | AW110: 5B3B96B84DD19ABD1E0347ECDE9A6D5BEE76FDFE219C59F301E7ACC02B6397C10663
A111: 보통인부 | C111: 인 | D111: 0.003 | E111: =단가대비표!O31 -> 0.00 | F111: =TRUNC(E111*D111,1) -> 0.0 | G111: =단가대비표!P31 -> 165,545.00 | H111: =TRUNC(G111*D111,1) -> 496.6 | I111: =단가대비표!V31 -> 0.00 | J111: =TRUNC(I111*D111,1) -> 0.0 | K111: 165,545.00 | L111: 496.6 | N111: 5B3B96B84DD19ABD1E0347ECDE9A6D | O111: 5BEE76FDFE219C59F301E7ACC02B6397C104BA | P111: F | Q111: F | R111: T | V111: 1 | AW111: 5B3B96B84DD19ABD1E0347ECDE9A6D5BEE76FDFE219C59F301E7ACC02B6397C104BA
A112: 공구 및 경장비손료(엔진송풍기,연마기둥) | B112: 인력품의 6% | C112: 식 | D112: 1 | E112: 0.00 | F112: =TRUNC(E112*D112,1) -> 0.0 | G112: 0.00 | H112: =TRUNC(G112*D112,1) -> 0.0 | I112: =TRUNC(SUMIF(V110:V112,RIGHTB(O112,1),H110:H112)*U112,2) -> 119.07 | J112: =TRUNC(I112*D112,1) -> 119.0 | K112: 119.00 | L112: 119.0 | N112: 5B3B96B84DD19ABD1E0347ECDE9A6D | O112: 5A2CA637E8E190954A12A731B256001 | P112: F | Q112: F | R112: F | S112: 1 | T112: 2 | U112: 0.06 | AW112: 5B3B96B84DD19ABD1E0347ECDE9A6D5A2CA637E8E190954A12A731B256001
A113: [ 합 계 ] | F113: =TRUNC(SUMIF(N110:N112,N109,F110:F112),0) -> 0.0 | H113: =TRUNC(SUMIF(N110:N112,N109,H110:H112),0) -> 1,984.0 | J113: =TRUNC(SUMIF(N110:N112,N109,J110:J112),0) -> 119.0 | L113: =F113+H113+J113 -> 2,103.0 | N113: TOTAL | O113: TOTAL
A115: 시트방수철거+바탕처리[재방수] 벽 M2 ( 호표 19 ) | N115: 5B3B96B84DD19ABD1E02A77432226A
A116: 방수공 | C116: 인 | D116: 0.041 | E116: =단가대비표!O37 -> 0.00 | F116: =TRUNC(E116*D116,1) -> 0.0 | G116: =단가대비표!P37 -> 212,562.00 | H116: =TRUNC(G116*D116,1) -> 8,715.0 | I116: =단가대비표!V37 -> 0.00 | J116: =TRUNC(I116*D116,1) -> 0.0 | K116: =TRUNC(E116+G116+I116,1) -> 212,562.00 | L116: 8,715.0 | N116: 5B3B96B84DD19ABD1E02A77432226A | O116: 5BEE76FDFE219C59F301E7ACC02B6397C10663 | P116: F | Q116: F | R116: T | V116: 1 | AW116: 5B3B96B84DD19ABD1E02A77432226A5BEE76FDFE219C59F301E7ACC02B6397C10663
A117: 보통인부 | C117: 인 | D117: 0.017 | E117: =단가대비표!O31 -> 0.00 | F117: =TRUNC(E117*D117,1) -> 0.0 | G117: =단가대비표!P31 -> 165,545.00 | H117: =TRUNC(G117*D117,1) -> 2,814.2 | I117: =단가대비표!V31 -> 0.00 | J117: =TRUNC(I117*D117,1) -> 0.0 | K117: 165,545.00 | L117: 2,814.2 | N117: 5B3B96B84DD19ABD1E02A77432226A | O117: 5BEE76FDFE219C59F301E7ACC02B6397C104BA | P117: F | Q117: F | R117: T | V117: 1 | AW117: 5B3B96B84DD19ABD1E02A77432226A5BEE76FDFE219C59F301E7ACC02B6397C104BA
A118: 공구 및 경장비손료(엔진송풍기,연마기둥) | B118: 인력품의 6% | C118: 식 | D118: 1 | E118: 0.00 | F118: =TRUNC(E118*D118,1) -> 0.0 | G118: 0.00 | H118: =TRUNC(G118*D118,1) -> 0.0 | I118: =TRUNC(SUMIF(V116:V118,RIGHTB(O118,1),H116:H118)*U118,2) -> 691.75 | J118: =TRUNC(I118*D118,1) -> 691.7 | K118: 691.70 | L118: 691.7 | N118: 5B3B96B84DD19ABD1E02A77432226A | O118: 5A2CA637E8E190954A12A731B256001 | P118: F | Q118: F | R118: F | S118: 1 | T118: 2 | U118: 0.06 | AW118: 5B3B96B84DD19ABD1E02A77432226A5A2CA637E8E190954A12A731B256001
A119: [ 합 계 ] | F119: =TRUNC(SUMIF(N116:N118,N115,F116:F118),0) -> 0.0 | H119: =TRUNC(SUMIF(N116:N118,N115,H116:H118),0) -> 11,529.0 | J119: =TRUNC(SUMIF(N116:N118,N115,J116:J118),0) -> 691.0 | L119: =F119+H119+J119 -> 12,220.0 | N119: TOTAL | O119: TOTAL
A121: 코킹철거 M 건축 6-6-1 준용 ( 호표 20 ) | N121: 5B3B96B84DD19ABD1F28A780DBC365
A122: 코킹공 | C122: 인 | D122: 0.03 | E122: =단가대비표!O43 -> 0.00 | F122: =TRUNC(E122*D122,1) -> 0.0 | G122: =단가대비표!P43 -> 200,603.00 | H122: =TRUNC(G122*D122,1) -> 6,018.0 | I122: =단가대비표!V43 -> 0.00 | J122: =TRUNC(I122*D122,1) -> 0.0 | K122: =TRUNC(E122+G122+I122,1) -> 200,603.00 | L122: =TRUNC(F122+H122+J122,1) -> 6,018.0 | M122: 금액제외 | O122: 5BEE76FDFE219C59F3054757F4EE6A0EECB7B7 | P122: F | Q122: F | R122: T | V122: 1 | AW122: 5B3B96B84DD19ABD1F28A780DBC3655BEE76FDFE219C59F3054757F4EE6A0EECB7B7 | AY122: -
A123: 철거노임 | B123: 설치품의 30% | C123: 식 | D123: 1 | E123: 0.00 | F123: =TRUNC(E123*D123,1) -> 0.0 | G123: =TRUNC(SUMIF(V122:V123,RIGHTB(O123,1),H122:H123)*U123,2) -> 1,805.40 | H123: =TRUNC(G123*D123,1) -> 1,805.4 | I123: 0.00 | J123: =TRUNC(I123*D123,1) -> 0.0 | K123: =TRUNC(E123+G123+I123,1) -> 1,805.40 | L123: =TRUNC(F123+H123+J123,1) -> 1,805.4 | N123: 5B3B96B84DD19ABD1F28A780DBC365 | O123: 5A2CA637E8E190954A12A731B256001 | P123: F | Q123: F | R123: F | S123: 1 | T123: 1 | U123: 0.3 | AW123: 5B3B96B84DD19ABD1F28A780DBC3655A2CA637E8E190954A12A731B256001
A124: [ 합 계 ] | F124: =TRUNC(SUMIF(N122:N123,N121,F122:F123),0) -> 0.0 | H124: =TRUNC(SUMIF(N122:N123,N121,H122:H123),0) -> 1,805.0 | J124: =TRUNC(SUMIF(N122:N123,N121,J122:J123),0) -> 0.0 | L124: =F124+H124+J124 -> 1,805.0 | N124: TOTAL | O124: TOTAL
A126: 모르타르철거 바닥, 소형장비 M2 ( 호표 21 ) | N126: 5B3B96B84DD19B5BABE667D0533F66
A127: 보통인부 | C127: 인 | D127: 0.018 | E127: =단가대비표!O31 -> 0.00 | F127: =TRUNC(E127*D127,1) -> 0.0 | G127: =단가대비표!P31 -> 165,545.00 | H127: =TRUNC(G127*D127,1) -> 2,979.8 | I127: =단가대비표!V31 -> 0.00 | J127: =TRUNC(I127*D127,1) -> 0.0 | K127: =TRUNC(E127+G127+I127,1) -> 165,545.00 | L127: =TRUNC(F127+H127+J127,1) -> 2,979.8 | N127: 5B3B96B84DD19B5BABE667D0533F66 | O127: 5BEE76FDFE219C59F301E7ACC02B6397C104BA | P127: F | Q127: F | R127: T | AW127: 5B3B96B84DD19B5BABE667D0533F665BEE76FDFE219C59F301E7ACC02B6397C104BA
A128: 소형브레이커(전기식). | B128: 1.5kw | C128: HR | D128: 0.1 | E128: =일위대가목록!E47 -> 0.00 | F128: =TRUNC(E128*D128,1) -> 0.0 | G128: =일위대가목록!F47 -> 0.00 | H128: =TRUNC(G128*D128,1) -> 0.0 | I128: =일위대가목록!G47 -> 310.00 | J128: =TRUNC(I128*D128,1) -> 31.0 | K128: =TRUNC(E128+G128+I128,1) -> 310.00 | L128: =TRUNC(F128+H128+J128,1) -> 31.0 | M128: 호표 44 | N128: 5B3B96B84DD19B5BABE667D0533F66 | O128: 5C24262EDF01995F503117D5F8C36AD331FC225B | P128: T | Q128: F | R128: F | AW128: 5B3B96B84DD19B5BABE667D0533F665C24262EDF01995F503117D5F8C36AD331FC225B
A129: [ 합 계 ] | F129: =TRUNC(SUMIF(N127:N128,N126,F127:F128),0) -> 0.0 | H129: =TRUNC(SUMIF(N127:N128,N126,H127:H128),0) -> 2,979.0 | J129: =TRUNC(SUMIF(N127:N128,N126,J127:J128),0) -> 31.0 | L129: =F129+H129+J129 -> 3,010.0 | N129: TOTAL | O129: TOTAL
A131: 드레인 철거 Ø100 EA 건축 7-3-1(20%) ( 호표 22 ) | N131: 5B3B96B84DD19B5F061DD75A39956B
A132: 배관공 | C132: 인 | D132: 0.034 | E132: =단가대비표!O40 -> 0.00 | F132: =TRUNC(E132*D132,1) -> 0.0 | G132: =단가대비표!P40 -> 229,482.00 | H132: =TRUNC(G132*D132,1) -> 7,802.3 | I132: =단가대비표!V40 -> 0.00 | J132: =TRUNC(I132*D132,1) -> 0.0 | K132: =TRUNC(E132+G132+I132,1) -> 229,482.00 | L132: =TRUNC(F132+H132+J132,1) -> 7,802.3 | N132: 5B3B96B84DD19B5F061DD75A39956B | O132: 5BEE76FDFE219C59F301E7ACC02B6397C10705 | P132: F | Q132: F | R132: T | AW132: 5B3B96B84DD19B5F061DD75A39956B5BEE76FDFE219C59F301E7ACC02B6397C10705
A133: 보통인부 | C133: 인 | D133: 0.008 | E133: =단가대비표!O31 -> 0.00 | F133: =TRUNC(E133*D133,1) -> 0.0 | G133: =단가대비표!P31 -> 165,545.00 | H133: =TRUNC(G133*D133,1) -> 1,324.3 | I133: =단가대비표!V31 -> 0.00 | J133: =TRUNC(I133*D133,1) -> 0.0 | K133: =TRUNC(E133+G133+I133,1) -> 165,545.00 | L133: =TRUNC(F133+H133+J133,1) -> 1,324.3 | N133: 5B3B96B84DD19B5F061DD75A39956B | O133: 5BEE76FDFE219C59F301E7ACC02B6397C104BA | P133: F | Q133: F | R133: T | AW133: 5B3B96B84DD19B5F061DD75A39956B5BEE76FDFE219C59F301E7ACC02B6397C104BA
A134: [ 합 계 ] | F134: =TRUNC(SUMIF(N132:N133,N131,F132:F133),0) -> 0.0 | H134: =TRUNC(SUMIF(N132:N133,N131,H132:H133),0) -> 9,126.0 | J134: =TRUNC(SUMIF(N132:N133,N131,J132:J133),0) -> 0.0 | L134: =F134+H134+J134 -> 9,126.0 | N134: TOTAL | O134: TOTAL
A136: 폐기물하양비 톤 ( 호표 23 ) | N136: 5B3B96ABF5419740AB80E7996A466A
A137: 보통인부 | C137: 인 | D137: 0.1095 | E137: =단가대비표!O31 -> 0.00 | F137: =TRUNC(E137*D137,1) -> 0.0 | G137: =단가대비표!P31 -> 165,545.00 | H137: =TRUNC(G137*D137,1) -> 18,127.1 | I137: =단가대비표!V31 -> 0.00 | J137: =TRUNC(I137*D137,1) -> 0.0 | K137: =TRUNC(E137+G137+I137,1) -> 165,545.00 | L137: =TRUNC(F137+H137+J137,1) -> 18,127.1 | N137: 5B3B96ABF5419740AB80E7996A466A | O137: 5BEE76FDFE219C59F301E7ACC02B6397C104BA | P137: F | Q137: F | R137: T | AW137: 5B3B96ABF5419740AB80E7996A466A5BEE76FDFE219C59F301E7ACC02B6397C104BA
A138: [ 합 계 ] | F138: =TRUNC(SUMIF(N137:N137,N136,F137:F137),0) -> 0.0 | H138: =TRUNC(SUMIF(N137:N137,N136,H137:H137),0) -> 18,127.0 | J138: =TRUNC(SUMIF(N137:N137,N136,J137:J137),0) -> 0.0 | L138: =F138+H138+J138 -> 18,127.0 | N138: TOTAL | O138: TOTAL
A140: 크레인(타이어) 20ton HR 공통 8-3,4(2104) ( 호표 24 ) | N140: 5C24262EDF019EDE984EC7A8CF696D3A9B7B6372
A141: 크레인(타이어) | B141: 20ton | C141: 대 | D141: 0.2298 | E141: =단가대비표!O5 -> 0.00 | F141: =TRUNC(E141*D141,1) -> 0.0 | G141: =단가대비표!P5 -> 0.00 | H141: =TRUNC(G141*D141,1) -> 0.0 | I141: =단가대비표!V5 -> 218,492.00 | J141: =TRUNC(I141*D141,1) -> 50,209.4 | K141: =TRUNC(E141+G141+I141,1) -> 218,492.00 | L141: 50,209.4 | M141: 천원 | N141: 5C24262EDF019EDE984EC7A8CF696D3A9B7B6372 | O141: 5C24262EDF019EDE984EC7A8CF696D3A9B7B63 | P141: F | Q141: F | R141: T | AW141: 5C24262EDF019EDE984EC7A8CF696D3A9B7B63725C24262EDF019EDE984EC7A8CF696D3A9B7B63
A142: 경유 | B142: 저유황 | C142: L | D142: 5.4 | E142: =단가대비표!O17 -> 1,272.00 | F142: =TRUNC(E142*D142,1) -> 6,868.8 | G142: =단가대비표!P17 -> 0.00 | H142: =TRUNC(G142*D142,1) -> 0.0 | I142: =단가대비표!V17 -> 0.00 | J142: =TRUNC(I142*D142,1) -> 0.0 | K142: 1,272.00 | L142: 6,868.8 | N142: 5C24262EDF019EDE984EC7A8CF696D3A9B7B6372 | O142: 5C36D692F1D19A28FE7AE73B01576D1371F6B2 | P142: F | Q142: F | R142: T | V142: 1 | AW142: 5C24262EDF019EDE984EC7A8CF696D3A9B7B63725C36D692F1D19A28FE7AE73B01576D1371F6B2
A143: 잡재료 | B143: 주재료비의 39% | C143: 식 | D143: 1 | E143: =TRUNC(SUMIF(V141:V144,RIGHTB(O143,1),F141:F144)*U143,2) -> 2,678.83 | F143: =TRUNC(E143*D143,1) -> 2,678.8 | G143: 0.00 | H143: =TRUNC(G143*D143,1) -> 0.0 | I143: 0.00 | J143: =TRUNC(I143*D143,1) -> 0.0 | K143: 2,678.80 | L143: 2,678.8 | N143: 5C24262EDF019EDE984EC7A8CF696D3A9B7B6372 | O143: 5A2CA637E8E190954A12A731B256001 | P143: F | Q143: F | R143: F | S143: 0 | T143: 0 | U143: 0.39 | AW143: 5C24262EDF019EDE984EC7A8CF696D3A9B7B63725A2CA637E8E190954A12A731B256001
A144: 건설기계운전사 | C144: 인 | D144: 1 | E144: =TRUNC(단가대비표!O41*1/8*16/12*25/20,1) -> 0.00 | F144: =TRUNC(E144*D144,1) -> 0.0 | G144: =TRUNC(단가대비표!P41*1/8*16/12*25/20,1) -> 55,700.00 | H144: =TRUNC(G144*D144,1) -> 55,700.0 | I144: =TRUNC(단가대비표!V41*1/8*16/12*25/20,1) -> 0.00 | J144: =TRUNC(I144*D144,1) -> 0.0 | K144: 55,700.00 | L144: 55,700.0 | N144: 5C24262EDF019EDE984EC7A8CF696D3A9B7B6372 | O144: 5BEE76FDFE219C59F301E7ACC02B6397C100D5 | P144: F | Q144: F | R144: T | AW144: 5C24262EDF019EDE984EC7A8CF696D3A9B7B63725BEE76FDFE219C59F301E7ACC02B6397C100D5 | AX144: T
A145: [ 합 계 ] | F145: =TRUNC(SUMIF(N141:N144,N140,F141:F144),0) -> 9,547.0 | H145: =TRUNC(SUMIF(N141:N144,N140,H141:H144),0) -> 55,700.0 | J145: =TRUNC(SUMIF(N141:N144,N140,J141:J144),0) -> 50,209.0 | L145: =F145+H145+J145 -> 115,456.0 | N145: TOTAL | O145: TOTAL
A147: 이동식 양중 및 작업장비 5ton, 스카이 HR 토목 9-5.9 ( 호표 25 ) | N147: 5C24262EDF019EDE9842179246956EACF02C766B
A148: 이동식리프트(고소작업차) | B148: 5톤 | C148: 대 | D148: 0.2598 | E148: =단가대비표!O6 -> 0.00 | F148: =TRUNC(E148*D148,1) -> 0.0 | G148: =단가대비표!P6 -> 0.00 | H148: =TRUNC(G148*D148,1) -> 0.0 | I148: =단가대비표!V6 -> 126,228.00 | J148: =TRUNC(I148*D148,1) -> 32,794.0 | K148: =TRUNC(E148+G148+I148,1) -> 126,228.00 | L148: 32,794.0 | M148: 천원 | N148: 5C24262EDF019EDE9842179246956EACF02C766B | O148: 5C24262EDF019EDE984C17C5270567B27C31F3 | P148: F | Q148: F | R148: T | AW148: 5C24262EDF019EDE9842179246956EACF02C766B5C24262EDF019EDE984C17C5270567B27C31F3
A149: 경유 | B149: 저유황 | C149: L | D149: 5.1 | E149: =단가대비표!O17 -> 1,272.00 | F149: =TRUNC(E149*D149,1) -> 6,487.2 | G149: =단가대비표!P17 -> 0.00 | H149: =TRUNC(G149*D149,1) -> 0.0 | I149: =단가대비표!V17 -> 0.00 | J149: =TRUNC(I149*D149,1) -> 0.0 | K149: 1,272.00 | L149: 6,487.2 | N149: 5C24262EDF019EDE9842179246956EACF02C766B | O149: 5C36D692F1D19A28FE7AE73B01576D1371F6B2 | P149: F | Q149: F | R149: T | V149: 1 | AW149: 5C24262EDF019EDE9842179246956EACF02C766B5C36D692F1D19A28FE7AE73B01576D1371F6B2
A150: 잡재료 | B150: 주연료비의 20% | C150: 식 | D150: 1 | E150: =TRUNC(SUMIF(V148:V151,RIGHTB(O150,1),F148:F151)*U150,2) -> 1,297.44 | F150: =TRUNC(E150*D150,1) -> 1,297.4 | G150: 0.00 | H150: =TRUNC(G150*D150,1) -> 0.0 | I150: 0.00 | J150: =TRUNC(I150*D150,1) -> 0.0 | K150: 1,297.40 | L150: 1,297.4 | N150: 5C24262EDF019EDE9842179246956EACF02C766B | O150: 5A2CA637E8E190954A12A731B256001 | P150: F | Q150: F | R150: F | S150: 0 | T150: 0 | U150: 0.2 | AW150: 5C24262EDF019EDE9842179246956EACF02C766B5A2CA637E8E190954A12A731B256001
A151: 화물차운전사 | C151: 인 | D151: 1 | E151: =TRUNC(단가대비표!O42*1/8*16/12*25/20,1) -> 0.00 | F151: =TRUNC(E151*D151,1) -> 0.0 | G151: =TRUNC(단가대비표!P42*1/8*16/12*25/20,1) -> 47,231.00 | H151: =TRUNC(G151*D151,1) -> 47,231.0 | I151: =TRUNC(단가대비표!V42*1/8*16/12*25/20,1) -> 0.00 | J151: =TRUNC(I151*D151,1) -> 0.0 | K151: 47,231.00 | L151: 47,231.0 | N151: 5C24262EDF019EDE9842179246956EACF02C766B | O151: 5BEE76FDFE219C59F301E7ACC02B6397C100D4 | P151: F | Q151: F | R151: T | AW151: 5C24262EDF019EDE9842179246956EACF02C766B5BEE76FDFE219C59F301E7ACC02B6397C100D4 | AX151: T
A152: [ 합 계 ] | F152: =TRUNC(SUMIF(N148:N151,N147,F148:F151),0) -> 7,784.0 | H152: =TRUNC(SUMIF(N148:N151,N147,H148:H151),0) -> 47,231.0 | J152: =TRUNC(SUMIF(N148:N151,N147,J148:J151),0) -> 32,794.0 | L152: =F152+H152+J152 -> 87,809.0 | N152: TOTAL | O152: TOTAL
A154: 콘크리트 펌프차 32m(80∼95㎥/hr) HR 공통 8-3,4(4504) ( 호표 26 ) | N154: 5C24262EDF0198B3669747405D9A6472ED3A8D7A
A155: 콘크리트펌프차 | B155: 32m(80∼95㎥/hr) | C155: 대 | D155: 0.264 | E155: =단가대비표!O7 -> 0.00 | F155: =TRUNC(E155*D155,1) -> 0.0 | G155: =단가대비표!P7 -> 0.00 | H155: =TRUNC(G155*D155,1) -> 0.0 | I155: =단가대비표!V7 -> 248,444.00 | J155: =TRUNC(I155*D155,1) -> 65,589.2 | K155: =TRUNC(E155+G155+I155,1) -> 248,444.00 | L155: 65,589.2 | M155: 천원 | N155: 5C24262EDF0198B3669747405D9A6472ED3A8D7A | O155: 5C24262EDF0198B3669747405D9A6472ED3A8D | P155: F | Q155: F | R155: T | AW155: 5C24262EDF0198B3669747405D9A6472ED3A8D7A5C24262EDF0198B3669747405D9A6472ED3A8D
A156: 경유 | B156: 저유황 | C156: L | D156: 17.3 | E156: =단가대비표!O17 -> 1,272.00 | F156: =TRUNC(E156*D156,1) -> 22,005.6 | G156: =단가대비표!P17 -> 0.00 | H156: =TRUNC(G156*D156,1) -> 0.0 | I156: =단가대비표!V17 -> 0.00 | J156: =TRUNC(I156*D156,1) -> 0.0 | K156: 1,272.00 | L156: 22,005.6 | N156: 5C24262EDF0198B3669747405D9A6472ED3A8D7A | O156: 5C36D692F1D19A28FE7AE73B01576D1371F6B2 | P156: F | Q156: F | R156: T | V156: 1 | AW156: 5C24262EDF0198B3669747405D9A6472ED3A8D7A5C36D692F1D19A28FE7AE73B01576D1371F6B2
A157: 잡재료 | B157: 주연료비의 35% | C157: 식 | D157: 1 | E157: =TRUNC(SUMIF(V155:V158,RIGHTB(O157,1),F155:F158)*U157,2) -> 7,701.96 | F157: =TRUNC(E157*D157,1) -> 7,701.9 | G157: 0.00 | H157: =TRUNC(G157*D157,1) -> 0.0 | I157: 0.00 | J157: =TRUNC(I157*D157,1) -> 0.0 | K157: 7,701.90 | L157: 7,701.9 | N157: 5C24262EDF0198B3669747405D9A6472ED3A8D7A | O157: 5A2CA637E8E190954A12A731B256001 | P157: F | Q157: F | R157: F | S157: 0 | T157: 0 | U157: 0.35 | AW157: 5C24262EDF0198B3669747405D9A6472ED3A8D7A5A2CA637E8E190954A12A731B256001
A158: 건설기계운전사 | C158: 인 | D158: 1 | E158: =TRUNC(단가대비표!O41*1/8*16/12*25/20,1) -> 0.00 | F158: =TRUNC(E158*D158,1) -> 0.0 | G158: =TRUNC(단가대비표!P41*1/8*16/12*25/20,1) -> 55,700.00 | H158: =TRUNC(G158*D158,1) -> 55,700.0 | I158: =TRUNC(단가대비표!V41*1/8*16/12*25/20,1) -> 0.00 | J158: =TRUNC(I158*D158,1) -> 0.0 | K158: 55,700.00 | L158: 55,700.0 | N158: 5C24262EDF0198B3669747405D9A6472ED3A8D7A | O158: 5BEE76FDFE219C59F301E7ACC02B6397C100D5 | P158: F | Q158: F | R158: T | AW158: 5C24262EDF0198B3669747405D9A6472ED3A8D7A5BEE76FDFE219C59F301E7ACC02B6397C100D5 | AX158: T
A159: [ 합 계 ] | F159: =TRUNC(SUMIF(N155:N158,N154,F155:F158),0) -> 29,707.0 | H159: =TRUNC(SUMIF(N155:N158,N154,H155:H158),0) -> 55,700.0 | J159: =TRUNC(SUMIF(N155:N158,N154,J155:J158),0) -> 65,589.0 | L159: =F159+H159+J159 -> 150,996.0 | N159: TOTAL | O159: TOTAL
A161: 드레인설치_노무비 EA 건축 7-3-1 ( 호표 27 ) | N161: 5B3A161E40F19B6C6A01A726842767
A162: 배관공 | C162: 인 | D162: 0.17 | E162: =단가대비표!O40 -> 0.00 | F162: =TRUNC(E162*D162,1) -> 0.0 | G162: =단가대비표!P40 -> 229,482.00 | H162: =TRUNC(G162*D162,1) -> 39,011.9 | I162: =단가대비표!V40 -> 0.00 | J162: =TRUNC(I162*D162,1) -> 0.0 | K162: =TRUNC(E162+G162+I162,1) -> 229,482.00 | L162: =TRUNC(F162+H162+J162,1) -> 39,011.9 | N162: 5B3A161E40F19B6C6A01A726842767 | O162: 5BEE76FDFE219C59F301E7ACC02B6397C10705 | P162: F | Q162: F | R162: T | AW162: 5B3A161E40F19B6C6A01A7268427675BEE76FDFE219C59F301E7ACC02B6397C10705
A163: 보통인부 | C163: 인 | D163: 0.04 | E163: =단가대비표!O31 -> 0.00 | F163: =TRUNC(E163*D163,1) -> 0.0 | G163: =단가대비표!P31 -> 165,545.00 | H163: =TRUNC(G163*D163,1) -> 6,621.8 | I163: =단가대비표!V31 -> 0.00 | J163: =TRUNC(I163*D163,1) -> 0.0 | K163: =TRUNC(E163+G163+I163,1) -> 165,545.00 | L163: =TRUNC(F163+H163+J163,1) -> 6,621.8 | N163: 5B3A161E40F19B6C6A01A726842767 | O163: 5BEE76FDFE219C59F301E7ACC02B6397C104BA | P163: F | Q163: F | R163: T | AW163: 5B3A161E40F19B6C6A01A7268427675BEE76FDFE219C59F301E7ACC02B6397C104BA
A164: [ 합 계 ] | F164: =TRUNC(SUMIF(N162:N163,N161,F162:F163),0) -> 0.0 | H164: =TRUNC(SUMIF(N162:N163,N161,H162:H163),0) -> 45,633.0 | J164: =TRUNC(SUMIF(N162:N163,N161,J162:J163),0) -> 0.0 | L164: =F164+H164+J164 -> 45,633.0 | N164: TOTAL | O164: TOTAL
A166: 수밀코킹_노무비 M 건축 6-6-1 ( 호표 28 ) | N166: 5B3A06382F0195503D256744A2246E
A167: 코킹공 | C167: 인 | D167: 0.025 | E167: =단가대비표!O43 -> 0.00 | F167: =TRUNC(E167*D167,1) -> 0.0 | G167: =단가대비표!P43 -> 200,603.00 | H167: =TRUNC(G167*D167,1) -> 5,015.0 | I167: =단가대비표!V43 -> 0.00 | J167: =TRUNC(I167*D167,1) -> 0.0 | K167: =TRUNC(E167+G167+I167,1) -> 200,603.00 | L167: =TRUNC(F167+H167+J167,1) -> 5,015.0 | N167: 5B3A06382F0195503D256744A2246E | O167: 5BEE76FDFE219C59F3054757F4EE6A0EECB7B7 | P167: F | Q167: F | R167: T | AW167: 5B3A06382F0195503D256744A2246E5BEE76FDFE219C59F3054757F4EE6A0EECB7B7
A168: [ 합 계 ] | F168: =TRUNC(SUMIF(N167:N167,N166,F167:F167),0) -> 0.0 | H168: =TRUNC(SUMIF(N167:N167,N166,H167:H167),0) -> 5,015.0 | J168: =TRUNC(SUMIF(N167:N167,N166,J167:J167),0) -> 0.0 | L168: =F168+H168+J168 -> 5,015.0 | N168: TOTAL | O168: TOTAL
A170: 와이어메쉬깔기_노무비 M2 건축 8-1-3(2016보완) ( 호표 29 ) | N170: 5B3A669FB6719086E1ACD743466A66
A171: 특별인부 | C171: 인 | D171: 0.006 | E171: =단가대비표!O32 -> 0.00 | F171: =TRUNC(E171*D171,1) -> 0.0 | G171: =단가대비표!P32 -> 214,222.00 | H171: =TRUNC(G171*D171,1) -> 1,285.3 | I171: =단가대비표!V32 -> 0.00 | J171: =TRUNC(I171*D171,1) -> 0.0 | K171: =TRUNC(E171+G171+I171,1) -> 214,222.00 | L171: =TRUNC(F171+H171+J171,1) -> 1,285.3 | N171: 5B3A669FB6719086E1ACD743466A66 | O171: 5BEE76FDFE219C59F301E7ACC02B6397C104BB | P171: F | Q171: F | R171: T | AW171: 5B3A669FB6719086E1ACD743466A665BEE76FDFE219C59F301E7ACC02B6397C104BB
A172: [ 합 계 ] | F172: =TRUNC(SUMIF(N171:N171,N170,F171:F171),0) -> 0.0 | H172: =TRUNC(SUMIF(N171:N171,N170,H171:H171),0) -> 1,285.0 | J172: =TRUNC(SUMIF(N171:N171,N170,J171:J171),0) -> 0.0 | L172: =F172+H172+J172 -> 1,285.0 | N172: TOTAL | O172: TOTAL
A174: 스틸파이프설치 30*30*1.6mm M 건축 8-3-1 ( 호표 30 ) | N174: 5B3A66992AB1928F1139B7602BFE64
A175: 강관 | B175: ㅁ30*30*1.6 | C175: M | D175: 1.05 | E175: =단가대비표!O29 -> 1,630.00 | F175: =TRUNC(E175*D175,1) -> 1,711.5 | G175: =단가대비표!P29 -> 0.00 | H175: =TRUNC(G175*D175,1) -> 0.0 | I175: =단가대비표!V29 -> 0.00 | J175: =TRUNC(I175*D175,1) -> 0.0 | K175: =TRUNC(E175+G175+I175,1) -> 1,630.00 | L175: 1,711.5 | N175: 5B3A66992AB1928F1139B7602BFE64 | O175: 5C63D696C5F19D308F9C777A47D6641255BC4D | P175: F | Q175: F | R175: T | AW175: 5B3A66992AB1928F1139B7602BFE645C63D696C5F19D308F9C777A47D6641255BC4D
A176: 잡철물현장제작설치 | C176: KG | D176: 1.38 | E176: =일위대가목록!E36 -> 153.00 | F176: =TRUNC(E176*D176,1) -> 211.1 | G176: =일위대가목록!F36 -> 5,132.00 | H176: =TRUNC(G176*D176,1) -> 7,082.1 | I176: =일위대가목록!G36 -> 256.00 | J176: =TRUNC(I176*D176,1) -> 353.2 | K176: 5,541.00 | L176: 7,646.4 | M176: 호표 33 | N176: 5B3A66992AB1928F1139B7602BFE64 | O176: 5B3A768FE8119D55CE77170DCFBB61 | P176: T | Q176: F | R176: F | AW176: 5B3A66992AB1928F1139B7602BFE645B3A768FE8119D55CE77170DCFBB61
A177: 녹막이페인트 | B177: 철재면, 1회, 뿜칠 | C177: M2 | D177: 0.12 | E177: =일위대가목록!E37 -> 554.00 | F177: =TRUNC(E177*D177,1) -> 66.4 | G177: =일위대가목록!F37 -> 892.00 | H177: =TRUNC(G177*D177,1) -> 107.0 | I177: =일위대가목록!G37 -> 107.00 | J177: =TRUNC(I177*D177,1) -> 12.8 | K177: 1,553.00 | L177: 186.2 | M177: 호표 34 | N177: 5B3A66992AB1928F1139B7602BFE64 | O177: 5B3BC6F23AD198BC8947C76C23B86C | P177: T | Q177: F | R177: F | AW177: 5B3A66992AB1928F1139B7602BFE645B3BC6F23AD198BC8947C76C23B86C
A178: 작업부산물 | B178: 고철, 철재류 | C178: KG | D178: -0.0483 | E178: =단가대비표!O9 -> 665.00 | F178: =TRUNC(E178*D178,1) -> -32.1 | G178: =단가대비표!P9 -> 0.00 | H178: =TRUNC(G178*D178,1) -> 0.0 | I178: =단가대비표!V9 -> 0.00 | J178: =TRUNC(I178*D178,1) -> 0.0 | K178: 665.00 | L178: -32.1 | M178: 수집상차도 | N178: 5B3A66992AB1928F1139B7602BFE64 | O178: 5C36963946219BD161297764081F619CFC8B18 | P178: F | Q178: F | R178: T | AW178: 5B3A66992AB1928F1139B7602BFE645C36963946219BD161297764081F619CFC8B18
A179: [ 합 계 ] | F179: =TRUNC(SUMIF(N175:N178,N174,F175:F178),0) -> 1,956.0 | H179: =TRUNC(SUMIF(N175:N178,N174,H175:H178),0) -> 7,189.0 | J179: =TRUNC(SUMIF(N175:N178,N174,J175:J178),0) -> 366.0 | L179: =F179+H179+J179 -> 9,511.0 | N179: TOTAL | O179: TOTAL
A181: 알루미늄판설치 3.0mm, 불소P M2 건축 8-3-1 ( 호표 31 ) | N181: 5B3A6698070191A7DC4C17DC741360
A182: 알루미늄판설치 | B182: 3.0mm | C182: M2 | D182: 1 | E182: =일위대가목록!E38 -> 47,093.00 | F182: =TRUNC(E182*D182,1) -> 47,093.0 | G182: =일위대가목록!F38 -> 41,723.00 | H182: =TRUNC(G182*D182,1) -> 41,723.0 | I182: =일위대가목록!G38 -> 2,081.00 | J182: =TRUNC(I182*D182,1) -> 2,081.0 | K182: =TRUNC(E182+G182+I182,1) -> 90,897.00 | L182: =TRUNC(F182+H182+J182,1) -> 90,897.0 | M182: 호표 35 | N182: 5B3A6698070191A7DC4C17DC741360 | O182: 5B3A6698070191A7DC4C17DC741366 | P182: T | Q182: F | R182: F | AW182: 5B3A6698070191A7DC4C17DC7413605B3A6698070191A7DC4C17DC741366
A183: 불소수지페인트 | B183: 철재면, 2회, 뿜칠 | C183: M2 | D183: 1 | E183: =일위대가목록!E39 -> 8,983.00 | F183: =TRUNC(E183*D183,1) -> 8,983.0 | G183: =일위대가목록!F39 -> 3,454.00 | H183: =TRUNC(G183*D183,1) -> 3,454.0 | I183: =일위대가목록!G39 -> 214.00 | J183: =TRUNC(I183*D183,1) -> 214.0 | K183: =TRUNC(E183+G183+I183,1) -> 12,651.00 | L183: =TRUNC(F183+H183+J183,1) -> 12,651.0 | M183: 호표 36 | N183: 5B3A6698070191A7DC4C17DC741360 | O183: 5B3BC6F3C04193228449D7C8D16161 | P183: T | Q183: F | R183: F | AW183: 5B3A6698070191A7DC4C17DC7413605B3BC6F3C04193228449D7C8D16161
A184: [ 합 계 ] | F184: =TRUNC(SUMIF(N182:N183,N181,F182:F183),0) -> 56,076.0 | H184: =TRUNC(SUMIF(N182:N183,N181,H182:H183),0) -> 45,177.0 | J184: =TRUNC(SUMIF(N182:N183,N181,J182:J183),0) -> 2,295.0 | L184: =F184+H184+J184 -> 103,548.0 | N184: TOTAL | O184: TOTAL
A186: 수밀코킹 △10*10mm M 건축 6-6-1 ( 호표 32 ) | N186: 5B3A06382F019553F2B58705FA8065
A187: 실리콘 | B187: 조인트용 | C187: L | D187: 0.06 | E187: =단가대비표!O25 -> 10,000.00 | F187: =TRUNC(E187*D187,1) -> 600.0 | G187: =단가대비표!P25 -> 0.00 | H187: =TRUNC(G187*D187,1) -> 0.0 | I187: =단가대비표!V25 -> 0.00 | J187: =TRUNC(I187*D187,1) -> 0.0 | K187: =TRUNC(E187+G187+I187,1) -> 10,000.00 | L187: =TRUNC(F187+H187+J187,1) -> 600.0 | N187: 5B3A06382F019553F2B58705FA8065 | O187: 5C1BA6B7A2A191E5EBDAF7EB1326673FCFD3CF | P187: F | Q187: F | R187: T | AW187: 5B3A06382F019553F2B58705FA80655C1BA6B7A2A191E5EBDAF7EB1326673FCFD3CF
A188: 수밀코킹_노무비 | C188: M | D188: 1 | E188: =일위대가목록!E31 -> 0.00 | F188: =TRUNC(E188*D188,1) -> 0.0 | G188: =일위대가목록!F31 -> 5,015.00 | H188: =TRUNC(G188*D188,1) -> 5,015.0 | I188: =일위대가목록!G31 -> 0.00 | J188: =TRUNC(I188*D188,1) -> 0.0 | K188: =TRUNC(E188+G188+I188,1) -> 5,015.00 | L188: =TRUNC(F188+H188+J188,1) -> 5,015.0 | M188: 호표 28 | N188: 5B3A06382F019553F2B58705FA8065 | O188: 5B3A06382F0195503D256744A2246E | P188: T | Q188: F | R188: F | AW188: 5B3A06382F019553F2B58705FA80655B3A06382F0195503D256744A2246E
A189: [ 합 계 ] | F189: =TRUNC(SUMIF(N187:N188,N186,F187:F188),0) -> 600.0 | H189: =TRUNC(SUMIF(N187:N188,N186,H187:H188),0) -> 5,015.0 | J189: =TRUNC(SUMIF(N187:N188,N186,J187:J188),0) -> 0.0 | L189: =F189+H189+J189 -> 5,615.0 | N189: TOTAL | O189: TOTAL
A191: 잡철물현장제작설치 KG 건축 8-3-1(2022) ( 호표 33 ) | N191: 5B3A768FE8119D55CE77170DCFBB61
A192: 철공 | C192: 인 | D192: 0.01238 | E192: =단가대비표!O33 -> 0.00 | F192: =TRUNC(E192*D192,1) -> 0.0 | G192: =단가대비표!P33 -> 233,754.00 | H192: =TRUNC(G192*D192,1) -> 2,893.8 | I192: =단가대비표!V33 -> 0.00 | J192: =TRUNC(I192*D192,1) -> 0.0 | K192: =TRUNC(E192+G192+I192,1) -> 233,754.00 | L192: 2,893.8 | N192: 5B3A768FE8119D55CE77170DCFBB61 | O192: 5BEE76FDFE219C59F301E7ACC02B6397C104B1 | P192: F | Q192: F | R192: T | V192: 1 | W192: 2 | AW192: 5B3A768FE8119D55CE77170DCFBB615BEE76FDFE219C59F301E7ACC02B6397C104B1
A193: 용접공 | C193: 인 | D193: 0.00338 | E193: =단가대비표!O34 -> 0.00 | F193: 0.0 | G193: =단가대비표!P34 -> 267,021.00 | H193: 902.5 | I193: =단가대비표!V34 -> 0.00 | J193: 0.0 | K193: 267,021.00 | L193: 902.5 | N193: 5B3A768FE8119D55CE77170DCFBB61 | O193: 5BEE76FDFE219C59F301E7ACC02B6397C1055C | P193: F | Q193: F | R193: T | V193: 1 | W193: 2 | AW193: 5B3A768FE8119D55CE77170DCFBB615BEE76FDFE219C59F301E7ACC02B6397C1055C
A194: 특별인부 | C194: 인 | D194: 0.0045 | E194: =단가대비표!O32 -> 0.00 | F194: 0.0 | G194: =단가대비표!P32 -> 214,222.00 | H194: 963.9 | I194: =단가대비표!V32 -> 0.00 | J194: 0.0 | K194: 214,222.00 | L194: 963.9 | N194: 5B3A768FE8119D55CE77170DCFBB61 | O194: 5BEE76FDFE219C59F301E7ACC02B6397C104BB | P194: F | Q194: F | R194: T | V194: 1 | W194: 2 | AW194: 5B3A768FE8119D55CE77170DCFBB615BEE76FDFE219C59F301E7ACC02B6397C104BB
A195: 보통인부 | C195: 인 | D195: 0.00225 | E195: =단가대비표!O31 -> 0.00 | F195: 0.0 | G195: =단가대비표!P31 -> 165,545.00 | H195: 372.4 | I195: =단가대비표!V31 -> 0.00 | J195: 0.0 | K195: 165,545.00 | L195: 372.4 | N195: 5B3A768FE8119D55CE77170DCFBB61 | O195: 5BEE76FDFE219C59F301E7ACC02B6397C104BA | P195: F | Q195: F | R195: T | V195: 1 | W195: 2 | AW195: 5B3A768FE8119D55CE77170DCFBB615BEE76FDFE219C59F301E7ACC02B6397C104BA
A196: 잡재료(용접봉,볼트등) | B196: 인력품의 3% | C196: 식 | D196: 1 | E196: =TRUNC(SUMIF(V192:V197,RIGHTB(O196,1),H192:H197)*U196,2) -> 153.97 | F196: 153.9 | G196: 0.00 | H196: 0.0 | I196: 0.00 | J196: 0.0 | K196: 153.90 | L196: 153.9 | N196: 5B3A768FE8119D55CE77170DCFBB61 | O196: 5A2CA637E8E190954A12A731B256001 | P196: F | Q196: F | R196: F | S196: 1 | T196: 0 | U196: 0.03 | AW196: 5B3A768FE8119D55CE77170DCFBB615A2CA637E8E190954A12A731B256001
A197: 공구 및 경장비(절단기,용접기등)손료 | B197: 인력품의 5% | C197: 식 | D197: 1 | E197: 0.00 | F197: 0.0 | G197: 0.00 | H197: 0.0 | I197: =TRUNC(SUMIF(W192:W197,RIGHTB(O197,1),H192:H197)*U197,2) -> 256.63 | J197: 256.6 | K197: 256.60 | L197: 256.6 | N197: 5B3A768FE8119D55CE77170DCFBB61 | O197: 5A2CA637E8E190954A12A731B266002 | P197: F | Q197: F | R197: F | S197: 1 | T197: 2 | U197: 0.05 | AW197: 5B3A768FE8119D55CE77170DCFBB615A2CA637E8E190954A12A731B266002
A198: [ 합 계 ] | F198: =TRUNC(SUMIF(N192:N197,N191,F192:F197),0) -> 153.0 | H198: =TRUNC(SUMIF(N192:N197,N191,H192:H197),0) -> 5,132.0 | J198: =TRUNC(SUMIF(N192:N197,N191,J192:J197),0) -> 256.0 | L198: =F198+H198+J198 -> 5,541.0 | N198: TOTAL | O198: TOTAL
A200: 녹막이페인트 철재면, 1회, 뿜칠 M2 건축 11-2-6 준용 ( 호표 34 ) | N200: 5B3BC6F23AD198BC8947C76C23B86C
A201: 방청페인트 | B201: KSM6030, 1종 2류 | C201: L | D201: 0.08 | E201: =단가대비표!O23 -> 6,838.88 | F201: =TRUNC(E201*D201,1) -> 547.1 | G201: =단가대비표!P23 -> 0.00 | H201: =TRUNC(G201*D201,1) -> 0.0 | I201: =단가대비표!V23 -> 0.00 | J201: =TRUNC(I201*D201,1) -> 0.0 | K201: =TRUNC(E201+G201+I201,1) -> 6,838.80 | L201: 547.1 | N201: 5B3BC6F23AD198BC8947C76C23B86C | O201: 5C1BA6B7A2A191E7905D3744FED9687EF05A2F | P201: F | Q201: F | R201: T | AW201: 5B3BC6F23AD198BC8947C76C23B86C5C1BA6B7A2A191E7905D3744FED9687EF05A2F
A202: 시너 | B202: KSM6060, 2종 | C202: L | D202: 0.004 | E202: =단가대비표!O27 -> 1,778.00 | F202: =TRUNC(E202*D202,1) -> 7.1 | G202: =단가대비표!P27 -> 0.00 | H202: =TRUNC(G202*D202,1) -> 0.0 | I202: =단가대비표!V27 -> 0.00 | J202: =TRUNC(I202*D202,1) -> 0.0 | K202: 1,778.00 | L202: 7.1 | N202: 5B3BC6F23AD198BC8947C76C23B86C | O202: 5C1BA6B7A2A191EA6D1A275FB21D6FCEE984D1 | P202: F | Q202: F | R202: T | AW202: 5B3BC6F23AD198BC8947C76C23B86C5C1BA6B7A2A191EA6D1A275FB21D6FCEE984D1
A203: 도장공 | C203: 인 | D203: 0.0027 | E203: =단가대비표!O39 -> 0.00 | F203: =TRUNC(E203*D203,1) -> 0.0 | G203: =단가대비표!P39 -> 250,776.00 | H203: =TRUNC(G203*D203,1) -> 677.0 | I203: =단가대비표!V39 -> 0.00 | J203: =TRUNC(I203*D203,1) -> 0.0 | K203: 250,776.00 | L203: 677.0 | N203: 5B3BC6F23AD198BC8947C76C23B86C | O203: 5BEE76FDFE219C59F301E7ACC02B6397C1066C | P203: F | Q203: F | R203: T | V203: 1 | AW203: 5B3BC6F23AD198BC8947C76C23B86C5BEE76FDFE219C59F301E7ACC02B6397C1066C
A204: 보통인부 | C204: 인 | D204: 0.0013 | E204: =단가대비표!O31 -> 0.00 | F204: =TRUNC(E204*D204,1) -> 0.0 | G204: =단가대비표!P31 -> 165,545.00 | H204: =TRUNC(G204*D204,1) -> 215.2 | I204: =단가대비표!V31 -> 0.00 | J204: =TRUNC(I204*D204,1) -> 0.0 | K204: 165,545.00 | L204: 215.2 | N204: 5B3BC6F23AD198BC8947C76C23B86C | O204: 5BEE76FDFE219C59F301E7ACC02B6397C104BA | P204: F | Q204: F | R204: T | V204: 1 | AW204: 5B3BC6F23AD198BC8947C76C23B86C5BEE76FDFE219C59F301E7ACC02B6397C104BA
A205: 공구 및 경장비(엔진식도장기등)손료 | B205: 인력품의 12% | C205: 식 | D205: 1 | E205: 0.00 | F205: =TRUNC(E205*D205,1) -> 0.0 | G205: 0.00 | H205: =TRUNC(G205*D205,1) -> 0.0 | I205: =TRUNC(SUMIF(V201:V205,RIGHTB(O205,1),H201:H205)*U205,2) -> 107.06 | J205: =TRUNC(I205*D205,1) -> 107.0 | K205: 107.00 | L205: 107.0 | N205: 5B3BC6F23AD198BC8947C76C23B86C | O205: 5A2CA637E8E190954A12A731B256001 | P205: F | Q205: F | R205: F | S205: 1 | T205: 2 | U205: 0.12 | AW205: 5B3BC6F23AD198BC8947C76C23B86C5A2CA637E8E190954A12A731B256001
A206: [ 합 계 ] | F206: =TRUNC(SUMIF(N201:N205,N200,F201:F205),0) -> 554.0 | H206: =TRUNC(SUMIF(N201:N205,N200,H201:H205),0) -> 892.0 | J206: =TRUNC(SUMIF(N201:N205,N200,J201:J205),0) -> 107.0 | L206: =F206+H206+J206 -> 1,553.0 | N206: TOTAL | O206: TOTAL
A208: 알루미늄판설치 3.0mm M2 건축 8-3-1 ( 호표 35 ) | N208: 5B3A6698070191A7DC4C17DC741366
A209: 알루미늄합금판 | B209: A1050, 3.0mm | C209: KG | D209: 8.943 | E209: =단가대비표!O18 -> 5,270.00 | F209: =TRUNC(E209*D209,1) -> 47,129.6 | G209: =단가대비표!P18 -> 0.00 | H209: =TRUNC(G209*D209,1) -> 0.0 | I209: =단가대비표!V18 -> 0.00 | J209: =TRUNC(I209*D209,1) -> 0.0 | K209: =TRUNC(E209+G209+I209,1) -> 5,270.00 | L209: 47,129.6 | N209: 5B3A6698070191A7DC4C17DC741366 | O209: 5C1BB65D06A194746270D77452AF64F23670E7 | P209: F | Q209: F | R209: T | AW209: 5B3A6698070191A7DC4C17DC7413665C1BB65D06A194746270D77452AF64F23670E7
A210: 잡철물현장제작설치 | C210: KG | D210: 8.13 | E210: =일위대가목록!E36 -> 153.00 | F210: =TRUNC(E210*D210,1) -> 1,243.8 | G210: =일위대가목록!F36 -> 5,132.00 | H210: =TRUNC(G210*D210,1) -> 41,723.1 | I210: =일위대가목록!G36 -> 256.00 | J210: =TRUNC(I210*D210,1) -> 2,081.2 | K210: 5,541.00 | L210: 45,048.1 | M210: 호표 33 | N210: 5B3A6698070191A7DC4C17DC741366 | O210: 5B3A768FE8119D55CE77170DCFBB61 | P210: T | Q210: F | R210: F | AW210: 5B3A6698070191A7DC4C17DC7413665B3A768FE8119D55CE77170DCFBB61
A211: 작업부산물 | B211: 고철, 알루미늄류 | C211: KG | D211: -0.5691 | E211: =단가대비표!O10 -> 2,250.00 | F211: =TRUNC(E211*D211,1) -> -1,280.4 | G211: =단가대비표!P10 -> 0.00 | H211: =TRUNC(G211*D211,1) -> 0.0 | I211: =단가대비표!V10 -> 0.00 | J211: =TRUNC(I211*D211,1) -> 0.0 | K211: 2,250.00 | L211: -1,280.4 | M211: 수집상차도 | N211: 5B3A6698070191A7DC4C17DC741366 | O211: 5C36963946219BD1612977641A1564482ABB58 | P211: F | Q211: F | R211: T | AW211: 5B3A6698070191A7DC4C17DC7413665C36963946219BD1612977641A1564482ABB58
A212: [ 합 계 ] | F212: =TRUNC(SUMIF(N209:N211,N208,F209:F211),0) -> 47,093.0 | H212: =TRUNC(SUMIF(N209:N211,N208,H209:H211),0) -> 41,723.0 | J212: =TRUNC(SUMIF(N209:N211,N208,J209:J211),0) -> 2,081.0 | L212: =F212+H212+J212 -> 90,897.0 | N212: TOTAL | O212: TOTAL
A214: 불소수지페인트 철재면, 2회, 뿜칠 M2 건축 11-2-3준용 ( 호표 36 ) | N214: 5B3BC6F3C04193228449D7C8D16161
A215: 바탕만들기 | B215: 철재면 | C215: M2 | D215: 1 | E215: =일위대가목록!E40 -> 50.00 | F215: =TRUNC(E215*D215,1) -> 50.0 | G215: =일위대가목록!F40 -> 1,670.00 | H215: =TRUNC(G215*D215,1) -> 1,670.0 | I215: =일위대가목록!G40 -> 0.00 | J215: =TRUNC(I215*D215,1) -> 0.0 | K215: =TRUNC(E215+G215+I215,1) -> 1,720.00 | L215: 1,720.0 | M215: 호표 37 | N215: 5B3BC6F3C04193228449D7C8D16161 | O215: 5B3BC6F114D195C4718C07205CDE61 | P215: T | Q215: F | R215: F | AW215: 5B3BC6F3C04193228449D7C8D161615B3BC6F114D195C4718C07205CDE61
A216: 불소수지페인트_재료비 | B216: 철재면, 2회 | C216: M2 | D216: 1 | E216: =일위대가목록!E41 -> 8,933.00 | F216: =TRUNC(E216*D216,1) -> 8,933.0 | G216: =일위대가목록!F41 -> 0.00 | H216: =TRUNC(G216*D216,1) -> 0.0 | I216: =일위대가목록!G41 -> 0.00 | J216: =TRUNC(I216*D216,1) -> 0.0 | K216: 8,933.00 | L216: 8,933.0 | M216: 호표 38 | N216: 5B3BC6F3C04193228449D7C8D16161 | O216: 5B3BC6F3C041932283A2574F0F2363 | P216: T | Q216: F | R216: F | AW216: 5B3BC6F3C04193228449D7C8D161615B3BC6F3C041932283A2574F0F2363
A217: 유성페인트_노무비 | B217: 1회, 뿜칠 | C217: M2 | D217: 2 | E217: =일위대가목록!E42 -> 0.00 | F217: =TRUNC(E217*D217,1) -> 0.0 | G217: =일위대가목록!F42 -> 892.00 | H217: =TRUNC(G217*D217,1) -> 1,784.0 | I217: =일위대가목록!G42 -> 107.00 | J217: =TRUNC(I217*D217,1) -> 214.0 | K217: 999.00 | L217: 1,998.0 | M217: 호표 39 | N217: 5B3BC6F3C04193228449D7C8D16161 | O217: 5B3BC6F23931921AA0A687B706C067 | P217: T | Q217: F | R217: F | AW217: 5B3BC6F3C04193228449D7C8D161615B3BC6F23931921AA0A687B706C067
A218: [ 합 계 ] | F218: =TRUNC(SUMIF(N215:N217,N214,F215:F217),0) -> 8,983.0 | H218: =TRUNC(SUMIF(N215:N217,N214,H215:H217),0) -> 3,454.0 | J218: =TRUNC(SUMIF(N215:N217,N214,J215:J217),0) -> 214.0 | L218: =F218+H218+J218 -> 12,651.0 | N218: TOTAL | O218: TOTAL
A220: 바탕만들기 철재면 M2 건축 11-1-3 ( 호표 37 ) | N220: 5B3BC6F114D195C4718C07205CDE61
A221: 도장공 | C221: 인 | D221: 0.006 | E221: =단가대비표!O39 -> 0.00 | F221: =TRUNC(E221*D221,1) -> 0.0 | G221: =단가대비표!P39 -> 250,776.00 | H221: =TRUNC(G221*D221,1) -> 1,504.6 | I221: =단가대비표!V39 -> 0.00 | J221: =TRUNC(I221*D221,1) -> 0.0 | K221: =TRUNC(E221+G221+I221,1) -> 250,776.00 | L221: 1,504.6 | N221: 5B3BC6F114D195C4718C07205CDE61 | O221: 5BEE76FDFE219C59F301E7ACC02B6397C1066C | P221: F | Q221: F | R221: T | V221: 1 | AW221: 5B3BC6F114D195C4718C07205CDE615BEE76FDFE219C59F301E7ACC02B6397C1066C
A222: 보통인부 | C222: 인 | D222: 0.001 | E222: =단가대비표!O31 -> 0.00 | F222: =TRUNC(E222*D222,1) -> 0.0 | G222: =단가대비표!P31 -> 165,545.00 | H222: =TRUNC(G222*D222,1) -> 165.5 | I222: =단가대비표!V31 -> 0.00 | J222: =TRUNC(I222*D222,1) -> 0.0 | K222: 165,545.00 | L222: 165.5 | N222: 5B3BC6F114D195C4718C07205CDE61 | O222: 5BEE76FDFE219C59F301E7ACC02B6397C104BA | P222: F | Q222: F | R222: T | V222: 1 | AW222: 5B3BC6F114D195C4718C07205CDE615BEE76FDFE219C59F301E7ACC02B6397C104BA
A223: 잡재로(퍼티,연마지등) 및 공구손료 | B223: 인력품의 3% | C223: 식 | D223: 1 | E223: =TRUNC(SUMIF(V221:V223,RIGHTB(O223,1),H221:H223)*U223,2) -> 50.10 | F223: =TRUNC(E223*D223,1) -> 50.1 | G223: 0.00 | H223: =TRUNC(G223*D223,1) -> 0.0 | I223: 0.00 | J223: =TRUNC(I223*D223,1) -> 0.0 | K223: 50.10 | L223: 50.1 | N223: 5B3BC6F114D195C4718C07205CDE61 | O223: 5A2CA637E8E190954A12A731B256001 | P223: F | Q223: F | R223: F | S223: 1 | T223: 0 | U223: 0.03 | AW223: 5B3BC6F114D195C4718C07205CDE615A2CA637E8E190954A12A731B256001
A224: [ 합 계 ] | F224: =TRUNC(SUMIF(N221:N223,N220,F221:F223),0) -> 50.0 | H224: =TRUNC(SUMIF(N221:N223,N220,H221:H223),0) -> 1,670.0 | J224: =TRUNC(SUMIF(N221:N223,N220,J221:J223),0) -> 0.0 | L224: =F224+H224+J224 -> 1,720.0 | N224: TOTAL | O224: TOTAL
A226: 불소수지페인트_재료비 철재면, 2회 M2 건축 11-2-4(2020) ( 호표 38 ) | N226: 5B3BC6F3C041932283A2574F0F2363
A227: 불소수지도료 | B227: 스피플론 LP | C227: L | D227: 0.166 | E227: =단가대비표!O24 -> 53,727.00 | F227: =TRUNC(E227*D227,1) -> 8,918.6 | G227: =단가대비표!P24 -> 0.00 | H227: =TRUNC(G227*D227,1) -> 0.0 | I227: =단가대비표!V24 -> 0.00 | J227: =TRUNC(I227*D227,1) -> 0.0 | K227: =TRUNC(E227+G227+I227,1) -> 53,727.00 | L227: =TRUNC(F227+H227+J227,1) -> 8,918.6 | N227: 5B3BC6F3C041932283A2574F0F2363 | O227: 5C1BA6B7A2A191E7905687F01A486E527CB1F4 | P227: F | Q227: F | R227: T | AW227: 5B3BC6F3C041932283A2574F0F23635C1BA6B7A2A191E7905687F01A486E527CB1F4
A228: 시너 | B228: KSM6060, 1종 | C228: L | D228: 0.008 | E228: =단가대비표!O26 -> 1,840.00 | F228: =TRUNC(E228*D228,1) -> 14.7 | G228: =단가대비표!P26 -> 0.00 | H228: =TRUNC(G228*D228,1) -> 0.0 | I228: =단가대비표!V26 -> 0.00 | J228: =TRUNC(I228*D228,1) -> 0.0 | K228: =TRUNC(E228+G228+I228,1) -> 1,840.00 | L228: =TRUNC(F228+H228+J228,1) -> 14.7 | N228: 5B3BC6F3C041932283A2574F0F2363 | O228: 5C1BA6B7A2A191EA6D1A275FB21D6FCEE984D0 | P228: F | Q228: F | R228: T | AW228: 5B3BC6F3C041932283A2574F0F23635C1BA6B7A2A191EA6D1A275FB21D6FCEE984D0
A229: [ 합 계 ] | F229: =TRUNC(SUMIF(N227:N228,N226,F227:F228),0) -> 8,933.0 | H229: =TRUNC(SUMIF(N227:N228,N226,H227:H228),0) -> 0.0 | J229: =TRUNC(SUMIF(N227:N228,N226,J227:J228),0) -> 0.0 | L229: =F229+H229+J229 -> 8,933.0 | N229: TOTAL | O229: TOTAL
A231: 유성페인트_노무비 1회, 뿜칠 M2 건축 11-2-3 준용 ( 호표 39 ) | N231: 5B3BC6F23931921AA0A687B706C067
A232: 도장공 | C232: 인 | D232: 0.0027 | E232: =단가대비표!O39 -> 0.00 | F232: =TRUNC(E232*D232,1) -> 0.0 | G232: =단가대비표!P39 -> 250,776.00 | H232: =TRUNC(G232*D232,1) -> 677.0 | I232: =단가대비표!V39 -> 0.00 | J232: =TRUNC(I232*D232,1) -> 0.0 | K232: =TRUNC(E232+G232+I232,1) -> 250,776.00 | L232: 677.0 | N232: 5B3BC6F23931921AA0A687B706C067 | O232: 5BEE76FDFE219C59F301E7ACC02B6397C1066C | P232: F | Q232: F | R232: T | V232: 1 | AW232: 5B3BC6F23931921AA0A687B706C0675BEE76FDFE219C59F301E7ACC02B6397C1066C
A233: 보통인부 | C233: 인 | D233: 0.0013 | E233: =단가대비표!O31 -> 0.00 | F233: =TRUNC(E233*D233,1) -> 0.0 | G233: =단가대비표!P31 -> 165,545.00 | H233: =TRUNC(G233*D233,1) -> 215.2 | I233: =단가대비표!V31 -> 0.00 | J233: =TRUNC(I233*D233,1) -> 0.0 | K233: 165,545.00 | L233: 215.2 | N233: 5B3BC6F23931921AA0A687B706C067 | O233: 5BEE76FDFE219C59F301E7ACC02B6397C104BA | P233: F | Q233: F | R233: T | V233: 1 | AW233: 5B3BC6F23931921AA0A687B706C0675BEE76FDFE219C59F301E7ACC02B6397C104BA
A234: 공구 및 경장비(엔진식도장기등)손료 | B234: 인력품의 12% | C234: 식 | D234: 1 | E234: 0.00 | F234: =TRUNC(E234*D234,1) -> 0.0 | G234: 0.00 | H234: =TRUNC(G234*D234,1) -> 0.0 | I234: =TRUNC(SUMIF(V232:V234,RIGHTB(O234,1),H232:H234)*U234,2) -> 107.06 | J234: =TRUNC(I234*D234,1) -> 107.0 | K234: 107.00 | L234: 107.0 | N234: 5B3BC6F23931921AA0A687B706C067 | O234: 5A2CA637E8E190954A12A731B256001 | P234: F | Q234: F | R234: F | S234: 1 | T234: 2 | U234: 0.12 | AW234: 5B3BC6F23931921AA0A687B706C0675A2CA637E8E190954A12A731B256001
A235: [ 합 계 ] | F235: =TRUNC(SUMIF(N232:N234,N231,F232:F234),0) -> 0.0 | H235: =TRUNC(SUMIF(N232:N234,N231,H232:H234),0) -> 892.0 | J235: =TRUNC(SUMIF(N232:N234,N231,J232:J234),0) -> 107.0 | L235: =F235+H235+J235 -> 999.0 | N235: TOTAL | O235: TOTAL
A237: 바탕만들기[기존도장면] 벽 M2 건축 11-1-5 준용 ( 호표 40 ) | N237: 5B3BC6F114D195C4718B77D6040163
A238: 도장공 | C238: 인 | D238: 0.005 | E238: =단가대비표!O39 -> 0.00 | F238: =TRUNC(E238*D238,1) -> 0.0 | G238: =단가대비표!P39 -> 250,776.00 | H238: =TRUNC(G238*D238,1) -> 1,253.8 | I238: =단가대비표!V39 -> 0.00 | J238: =TRUNC(I238*D238,1) -> 0.0 | K238: =TRUNC(E238+G238+I238,1) -> 250,776.00 | L238: 1,253.8 | N238: 5B3BC6F114D195C4718B77D6040163 | O238: 5BEE76FDFE219C59F301E7ACC02B6397C1066C | P238: F | Q238: F | R238: T | V238: 1 | AW238: 5B3BC6F114D195C4718B77D60401635BEE76FDFE219C59F301E7ACC02B6397C1066C
A239: 보통인부 | C239: 인 | D239: 0.001 | E239: =단가대비표!O31 -> 0.00 | F239: =TRUNC(E239*D239,1) -> 0.0 | G239: =단가대비표!P31 -> 165,545.00 | H239: =TRUNC(G239*D239,1) -> 165.5 | I239: =단가대비표!V31 -> 0.00 | J239: =TRUNC(I239*D239,1) -> 0.0 | K239: 165,545.00 | L239: 165.5 | N239: 5B3BC6F114D195C4718B77D6040163 | O239: 5BEE76FDFE219C59F301E7ACC02B6397C104BA | P239: F | Q239: F | R239: T | V239: 1 | AW239: 5B3BC6F114D195C4718B77D60401635BEE76FDFE219C59F301E7ACC02B6397C104BA
... 27 more rows

Sheet 단가대비표 (hidden)
A1: 단 가 대 비 표
A2: [ 전쟁기념관 단지내 노후건축물 방수공사 ]
A3: 코 드 | B3: 품 명 | C3: 규격 | D3: 단위 | E3: 재 료 비 | P3: 노 무 비 | Q3: 경 비 | W3: 번 호 | X3: 비 고 | Y3: 품목구분 | Z3: 노임구분 | AA3: 소수점처리 | AB3: 자재구분
E4: 조달청가격 | F4: PAGE | G4: 거래가격 | H4: PAGE | I4: 유통물가 | J4: PAGE | K4: 조사가격1 | L4: PAGE | M4: 조사가격2 | N4: PAGE | O4: 적용단가 | Q4: 조달청가격 | R4: 거래가격 | S4: 유통물가 | T4: 조사가격1 | U4: 조사가격2 | V4: 적용단가
A5: 5C24262EDF019EDE984EC7A8CF696D3A9B7B63 | B5: 크레인(타이어) | C5: 20ton | D5: 대 | E5: 0 | G5: 0 | I5: 0 | K5: 0 | M5: 0 | O5: 0 | P5: 0 | Q5: 0 | R5: 0 | S5: 0 | T5: 0 | U5: 218,492.00 | V5: =SMALL(Q5:U5,COUNTIF(Q5:U5,0)+1) -> 218,492.00 | W5: 자재 1 | X5: 천원
A6: 5C24262EDF019EDE984C17C5270567B27C31F3 | B6: 이동식리프트(고소작업차) | C6: 5톤 | D6: 대 | E6: 0 | G6: 0 | I6: 0 | K6: 0 | M6: 0 | O6: 0 | P6: 0 | Q6: 0 | R6: 0 | S6: 0 | T6: 0 | U6: 126,228.00 | V6: =SMALL(Q6:U6,COUNTIF(Q6:U6,0)+1) -> 126,228.00 | W6: 자재 2 | X6: 천원
A7: 5C24262EDF0198B3669747405D9A6472ED3A8D | B7: 콘크리트펌프차 | C7: 32m(80∼95㎥/hr) | D7: 대 | E7: 0 | G7: 0 | I7: 0 | K7: 0 | M7: 0 | O7: 0 | P7: 0 | Q7: 0 | R7: 0 | S7: 0 | T7: 0 | U7: 248,444.00 | V7: =SMALL(Q7:U7,COUNTIF(Q7:U7,0)+1) -> 248,444.00 | W7: 자재 3 | X7: 천원
A8: 5C24262EDF01995F503117D5F8C36AD331FC22 | B8: 소형브레이커(전기식) | C8: 1.5kw | D8: 대 | E8: 0 | G8: 0 | I8: 0 | K8: 0 | M8: 0 | O8: 0 | P8: 0 | Q8: 0 | R8: 0 | S8: 0 | T8: 0 | U8: 1,240.00 | V8: =SMALL(Q8:U8,COUNTIF(Q8:U8,0)+1) -> 1,240.00 | W8: 자재 4 | X8: 천원
A9: 5C36963946219BD161297764081F619CFC8B18 | B9: 작업부산물 | C9: 고철, 철재류 | D9: KG | E9: 0 | G9: 665.00 | H9: 1456,중량A,매출 | I9: 0 | K9: 0 | M9: 0 | O9: =SMALL(E9:M9,COUNTIF(E9:M9,0)+1) -> 665.00 | P9: 0 | Q9: 0 | R9: 0 | S9: 0 | T9: 0 | U9: 0 | V9: 0 | W9: 자재 5 | X9: 수집상차도
A10: 5C36963946219BD1612977641A1564482ABB58 | B10: 작업부산물 | C10: 고철, 알루미늄류 | D10: KG | E10: 0 | G10: 2,250.00 | H10: 1456,새시,매출 | I10: 0 | K10: 0 | M10: 0 | O10: 2,250.00 | P10: 0 | Q10: 0 | R10: 0 | S10: 0 | T10: 0 | U10: 0 | V10: 0 | W10: 자재 6 | X10: 수집상차도
A11: 5C36A6DECC7197801271F7BD01B56ABE4DBA0B | B11: 프라이머 | D11: KG | E11: 0 | G11: 0 | I11: 0 | K11: 0 | M11: 5,800.00 | N11: 견적 | O11: 5,800.00 | P11: 0 | Q11: 0 | R11: 0 | S11: 0 | T11: 0 | U11: 0 | V11: 0 | W11: 자재 7
A12: 5C36A6DECC7197801271F7BD01B56ABE4DB964 | B12: 우레탄도막제 | C12: 노출 | D12: KG | E12: 0 | G12: 0 | I12: 0 | K12: 0 | M12: 5,560.00 | N12: 견적 | O12: 5,560.00 | P12: 0 | Q12: 0 | R12: 0 | S12: 0 | T12: 0 | U12: 0 | V12: 0 | W12: 자재 8
A13: 5C36A6DECC7197801271F7BD01B56ABE4DB85D | B13: 펠트보강재 | C13: 중심보강재 | D13: M2 | E13: 0 | G13: 0 | I13: 0 | K13: 0 | M13: 7,710.00 | N13: 견적 | O13: 7,710.00 | P13: 0 | Q13: 0 | R13: 0 | S13: 0 | T13: 0 | U13: 0 | V13: 0 | W13: 자재 9
A14: 5C36A6DECC7197801271F7BD01B56ABE4DBF8C | B14: 톱코트재 | C14: 자외선차단용 | D14: KG | E14: 0 | G14: 0 | I14: 0 | K14: 0 | M14: 5,840.00 | N14: 견적 | O14: 5,840.00 | P14: 0 | Q14: 0 | R14: 0 | S14: 0 | T14: 0 | U14: 0 | V14: 0 | W14: 자재 10
A15: 5C36A6DECC7197801271F7BD01B56ABE4DBEE6 | B15: 고점도씰재 | C15: 수직/코너보강 | D15: KG | E15: 0 | G15: 0 | I15: 0 | K15: 0 | M15: 7,930.00 | N15: 견적 | O15: 7,930.00 | P15: 0 | Q15: 0 | R15: 0 | S15: 0 | T15: 0 | U15: 0 | V15: 0 | W15: 자재 11
A16: 5C36A6DECC7197801271F7BD01B56ABE4DBDDF | B16: 전용용제 | C16: 세척, 희석 | D16: KG | E16: 0 | G16: 0 | I16: 0 | K16: 0 | M16: 3,590.00 | N16: 견적 | O16: 3,590.00 | P16: 0 | Q16: 0 | R16: 0 | S16: 0 | T16: 0 | U16: 0 | V16: 0 | W16: 자재 12
A17: 5C36D692F1D19A28FE7AE73B01576D1371F6B2 | B17: 경유 | C17: 저유황 | D17: L | E17: 1,272.00 | F17: 24.4.16공지 | G17: 1,594.54 | H17: 1451 | I17: 1,398.18 | J17: 1189 | K17: 0 | M17: 0 | O17: 1,272.00 | P17: 0 | Q17: 0 | R17: 0 | S17: 0 | T17: 0 | U17: 0 | V17: 0 | W17: 자재 13
A18: 5C1BB65D06A194746270D77452AF64F23670E7 | B18: 알루미늄합금판 | C18: A1050, 3.0mm | D18: KG | E18: 0 | G18: 5,270.00 | H18: 81 | I18: 5,420.00 | J18: 48 | K18: 0 | M18: 0 | O18: 5,270.00 | P18: 0 | Q18: 0 | R18: 0 | S18: 0 | T18: 0 | U18: 0 | V18: 0 | W18: 자재 14
A19: 5C1BB65D07419C8228D8C777CEE263724BBB43 | B19: 레미콘 | C19: 25-18-12 | D19: M3 | E19: 0 | G19: 99,980.00 | H19: 109 | I19: 91,990.00 | J19: 66 | K19: 0 | M19: 0 | O19: 91,990.00 | P19: 0 | Q19: 0 | R19: 0 | S19: 0 | T19: 0 | U19: 0 | V19: 0 | W19: 자재 15
A20: 5C1BB65D07419C8FE09647C6743F6B85F6A801 | B20: 와이어메쉬 | C20: #8-150*150 | D20: M2 | E20: 1,728.00 | G20: 2,170.00 | H20: 100 | I20: 2,101.00 | J20: 58 | K20: 0 | M20: 0 | O20: 1,728.00 | P20: 0 | Q20: 0 | R20: 0 | S20: 0 | T20: 0 | U20: 0 | V20: 0 | W20: 자재 16
A21: 5C1BB65D03D1936AC71E276C4B536BCA54E0F0 | B21: 루프드레인(L형) | C21: ISRD8570, Ø100mm | D21: EA | E21: 64,923.00 | G21: 67,000.00 | H21: 568 | I21: 68,120.00 | J21: 458 | K21: 0 | M21: 0 | O21: 64,923.00 | P21: 0 | Q21: 0 | R21: 0 | S21: 0 | T21: 0 | U21: 0 | V21: 0 | W21: 자재 17
A22: 5C1BA6B7A2A191E799B8D70535CA639A8C6DFD | B22: 친환경수성페인트 | C22: 숲으로 진품 | D22: L | E22: 0 | G22: 5,583.33 | H22: 603 | I22: 5,875.00 | J22: 478 | K22: 0 | M22: 0 | O22: 5,583.33 | P22: 0 | Q22: 0 | R22: 0 | S22: 0 | T22: 0 | U22: 0 | V22: 0 | W22: 노임 1 | Y22: B
A23: 5C1BA6B7A2A191E7905D3744FED9687EF05A2F | B23: 방청페인트 | C23: KSM6030, 1종 2류 | D23: L | E23: 6,955.00 | G23: 8,744.44 | H23: 599 | I23: 6,838.88 | J23: 466 | K23: 0 | M23: 0 | O23: 6,838.88 | P23: 0 | Q23: 0 | R23: 0 | S23: 0 | T23: 0 | U23: 0 | V23: 0 | W23: 자재 18
A24: 5C1BA6B7A2A191E7905687F01A486E527CB1F4 | B24: 불소수지도료 | C24: 스피플론 LP | D24: L | E24: 0 | G24: 0 | I24: 53,727.00 | J24: 491 | K24: 0 | M24: 0 | O24: 53,727.00 | P24: 0 | Q24: 0 | R24: 0 | S24: 0 | T24: 0 | U24: 0 | V24: 0 | W24: 노임 2 | Y24: B
A25: 5C1BA6B7A2A191E5EBDAF7EB1326673FCFD3CF | B25: 실리콘 | C25: 조인트용 | D25: L | E25: 0 | G25: 13,333.00 | H25: 591 | I25: 10,000.00 | J25: 394 | K25: 0 | M25: 0 | O25: 10,000.00 | P25: 0 | Q25: 0 | R25: 0 | S25: 0 | T25: 0 | U25: 0 | V25: 0 | W25: 자재 19
A26: 5C1BA6B7A2A191EA6D1A275FB21D6FCEE984D0 | B26: 시너 | C26: KSM6060, 1종 | D26: L | E26: 1,840.00 | G26: 3,494.44 | H26: 615 | I26: 3,722.22 | J26: 466 | K26: 0 | M26: 0 | O26: 1,840.00 | P26: 0 | Q26: 0 | R26: 0 | S26: 0 | T26: 0 | U26: 0 | V26: 0 | W26: 자재 20
A27: 5C1BA6B7A2A191EA6D1A275FB21D6FCEE984D1 | B27: 시너 | C27: KSM6060, 2종 | D27: L | E27: 1,778.00 | G27: 3,583.33 | H27: 615 | I27: 3,888.88 | J27: 466 | K27: 0 | M27: 0 | O27: 1,778.00 | P27: 0 | Q27: 0 | R27: 0 | S27: 0 | T27: 0 | U27: 0 | V27: 0 | W27: 자재 21
A28: 5C63D696C5F19D308F9E271A5D5B6759D19645 | B28: PVC 파이프 | C28: Ø100mm, VG2 | D28: M | E28: 0 | G28: 5,800.00 | H28: 793 | I28: 6,750.00 | J28: 554 | K28: 0 | M28: 0 | O28: 5,800.00 | P28: 0 | Q28: 0 | R28: 0 | S28: 0 | T28: 0 | U28: 0 | V28: 0 | W28: 자재 22
A29: 5C63D696C5F19D308F9C777A47D6641255BC4D | B29: 강관 | C29: ㅁ30*30*1.6 | D29: M | E29: 1,630.00 | G29: 1,810.00 | H29: 69 | I29: 0 | K29: 0 | M29: 0 | O29: 1,630.00 | P29: 0 | Q29: 0 | R29: 0 | S29: 0 | T29: 0 | U29: 0 | V29: 0 | W29: 자재 23
A30: 5B3B96ABF5419740AB80E7996A5762 | B30: 폐기물상차비 | C30: 덤프트럭 | D30: 톤 | E30: 0 | G30: 0 | H30: 1560 | I30: 0 | K30: 0 | M30: 0 | O30: 0 | P30: 0 | Q30: 0 | R30: 3,520.00 | S30: 0 | T30: 0 | U30: 0 | V30: =SMALL(Q30:U30,COUNTIF(Q30:U30,0)+1) -> 3,520.00 | W30: 자재 24
A31: 5BEE76FDFE219C59F301E7ACC02B6397C104BA | B31: 보통인부 | D31: 인 | E31: 0 | G31: 0 | I31: 0 | K31: 0 | M31: 0 | O31: 0 | P31: 165,545.00 | Q31: 0 | R31: 0 | S31: 0 | T31: 0 | U31: 0 | V31: 0 | W31: 노임 3 | Y31: B
A32: 5BEE76FDFE219C59F301E7ACC02B6397C104BB | B32: 특별인부 | D32: 인 | E32: 0 | G32: 0 | I32: 0 | K32: 0 | M32: 0 | O32: 0 | P32: 214,222.00 | Q32: 0 | R32: 0 | S32: 0 | T32: 0 | U32: 0 | V32: 0 | W32: 노임 4 | Y32: B
A33: 5BEE76FDFE219C59F301E7ACC02B6397C104B1 | B33: 철공 | D33: 인 | E33: 0 | G33: 0 | I33: 0 | K33: 0 | M33: 0 | O33: 0 | P33: 233,754.00 | Q33: 0 | R33: 0 | S33: 0 | T33: 0 | U33: 0 | V33: 0 | W33: 노임 5 | Y33: B
A34: 5BEE76FDFE219C59F301E7ACC02B6397C1055C | B34: 용접공 | D34: 인 | E34: 0 | G34: 0 | I34: 0 | K34: 0 | M34: 0 | O34: 0 | P34: 267,021.00 | Q34: 0 | R34: 0 | S34: 0 | T34: 0 | U34: 0 | V34: 0 | W34: 노임 6 | Y34: B
A35: 5BEE76FDFE219C59F301E7ACC02B6397C1055D | B35: 콘크리트공 | D35: 인 | E35: 0 | G35: 0 | I35: 0 | K35: 0 | M35: 0 | O35: 0 | P35: 261,283.00 | Q35: 0 | R35: 0 | S35: 0 | T35: 0 | U35: 0 | V35: 0 | W35: 노임 7 | Y35: B
A36: 5BEE76FDFE219C59F301E7ACC02B6397C1055B | B36: 착암공 | D36: 인 | E36: 0 | G36: 0 | I36: 0 | K36: 0 | M36: 0 | O36: 0 | P36: 210,152.00 | Q36: 0 | R36: 0 | S36: 0 | T36: 0 | U36: 0 | V36: 0 | W36: 노임 8 | Y36: B
A37: 5BEE76FDFE219C59F301E7ACC02B6397C10663 | B37: 방수공 | D37: 인 | E37: 0 | G37: 0 | I37: 0 | K37: 0 | M37: 0 | O37: 0 | P37: 212,562.00 | Q37: 0 | R37: 0 | S37: 0 | T37: 0 | U37: 0 | V37: 0 | W37: 노임 9 | Y37: B
A38: 5BEE76FDFE219C59F301E7ACC02B6397C10662 | B38: 미장공 | D38: 인 | E38: 0 | G38: 0 | I38: 0 | K38: 0 | M38: 0 | O38: 0 | P38: 266,787.00 | Q38: 0 | R38: 0 | S38: 0 | T38: 0 | U38: 0 | V38: 0 | W38: 노임 10 | Y38: B
A39: 5BEE76FDFE219C59F301E7ACC02B6397C1066C | B39: 도장공 | D39: 인 | E39: 0 | G39: 0 | I39: 0 | K39: 0 | M39: 0 | O39: 0 | P39: 250,776.00 | Q39: 0 | R39: 0 | S39: 0 | T39: 0 | U39: 0 | V39: 0 | W39: 노임 11 | Y39: B
A40: 5BEE76FDFE219C59F301E7ACC02B6397C10705 | B40: 배관공 | D40: 인 | E40: 0 | G40: 0 | I40: 0 | K40: 0 | M40: 0 | O40: 0 | P40: 229,482.00 | Q40: 0 | R40: 0 | S40: 0 | T40: 0 | U40: 0 | V40: 0 | W40: 노임 12 | Y40: B
A41: 5BEE76FDFE219C59F301E7ACC02B6397C100D5 | B41: 건설기계운전사 | D41: 인 | E41: 0 | G41: 0 | I41: 0 | K41: 0 | M41: 0 | O41: 0 | P41: 267,360.00 | Q41: 0 | R41: 0 | S41: 0 | T41: 0 | U41: 0 | V41: 0 | W41: 노임 13 | Y41: B
A42: 5BEE76FDFE219C59F301E7ACC02B6397C100D4 | B42: 화물차운전사 | D42: 인 | E42: 0 | G42: 0 | I42: 0 | K42: 0 | M42: 0 | O42: 0 | P42: 226,709.00 | Q42: 0 | R42: 0 | S42: 0 | T42: 0 | U42: 0 | V42: 0 | W42: 노임 14 | Y42: B
A43: 5BEE76FDFE219C59F3054757F4EE6A0EECB7B7 | B43: 코킹공 | D43: 인 | E43: 0 | G43: 0 | I43: 0 | K43: 0 | M43: 0 | O43: 0 | P43: 200,603.00 | Q43: 0 | R43: 0 | S43: 0 | T43: 0 | U43: 0 | V43: 0 | W43: 노임 15 | Y43: B
A44: 5A843614E32198E17A57A70F412A675DAA0372 | B44: 기타공사비(준공검수등) | D44: 식 | E44: 0 | G44: 0 | I44: 0 | K44: 0 | M44: 0 | O44: 0 | P44: 0 | Q44: 0 | R44: 0 | S44: 0 | T44: 0 | U44: 2,000,000.00 | V44: =SMALL(Q44:U44,COUNTIF(Q44:U44,0)+1) -> 2,000,000.00 | W44: 자재 25

Sheet Sheet1
